{"text_format":"1","workbook":"xlsx","n_sheets":3,"sheets":["★入力マニュアル★","算定基礎届・正","算定基礎届・副"],"not_rendered":{"charts":0,"images":5,"macros":1,"external_links":0,"defined_names":3,"comments":0,"pivot_tables":0},"unopened":[],"bounds":{"document_bytes":16777216,"sheet_cells":100000,"rows_first":2000,"rows_last":500,"rows_between":2000,"halvings":0,"cell_chars":16384,"cell_head_chars":4096},"cells_cut":0,"cells_raw":0,"read":"whole","date_system":"1900"}

{"sheet":"★入力マニュアル★","index":0,"n_rows":64,"n_cols":10,"rows_kept":64,"cut":false,"hidden":false,"merged":[[0,0,0,35]]}
["算定基礎届（Excel)入力マニュアル"]
[]
[]
[]
[]
["①",null,"の項目を入力"]
[]
["提出年月日"]
["健康保険の記号"]
["提出者記入欄"]
["健康保険被保険者等番号"]
["被保険者氏名"]
["生年月日"]
["改定年月"]
["従前の標準報酬月額"]
["支払基礎日数"]
["通貨による支給"]
["（現物による支給）"]
[]
[]
[]
[]
[]
[]
[]
[]
[]
[]
["②","社会保険労務士が入力する場合は、 社会保険労務士記載欄を入力"]
[]
[]
[]
[]
[]
[]
[]
[]
[]
[]
[]
[]
[]
["③","昇給・降給がある場合は昇降給月を入力し、☑を入れる"]
[null,"遡及支払がある場合は、支払月と金額を入力する"]
[null,"備考の該当者の場合は該当する項目に☑を入れる"]
[]
[]
[]
[]
[]
[]
[]
[]
[]
[]
[]
[]
[]
[]
[]
[]
["④","全て入力したら、",null,null,null,null,null,null,null,"をクリックし、印刷する。（副も自動で印刷されます。）"]
[]
[null,null,"（副に関して、両面印刷希望の場合は事前にプリンターの設定をする必要があります。）"]

{"sheet":"算定基礎届・正","index":1,"n_rows":215,"n_cols":122,"rows_kept":215,"cut":false,"hidden":false,"merged":[[42,12,44,39],[8,12,10,25],[61,99,64,108],[61,87,64,96],[65,87,68,96],[65,99,68,108],[77,87,80,96],[77,99,80,108],[73,87,76,96],[73,99,76,108],[61,2,65,16],[52,2,53,31],[52,32,53,46],[6,60,9,74],[6,9,7,49],[6,2,22,8],[23,2,33,8],[34,2,40,8],[66,40,71,44],[66,33,71,37],[63,83,65,84],[69,45,71,46],[69,38,71,39],[69,56,71,57],[207,106,209,108],[114,87,119,105],[144,87,149,105],[174,87,179,105],[204,87,209,105],[69,87,72,108],[141,86,143,87],[201,107,203,108],[171,88,173,106],[171,107,173,108],[171,86,173,87],[177,106,179,108],[91,87,94,96],[95,87,98,96],[91,99,94,108],[95,99,98,108],[147,106,149,108],[121,87,124,96],[121,99,124,108],[125,87,128,96],[125,99,128,108],[129,87,132,108],[133,87,136,96],[133,99,136,108],[195,83,197,84],[195,5,197,6],[192,2,193,6],[192,7,193,12],[164,2,167,4],[164,7,167,14],[192,17,193,22],[168,2,173,4],[189,83,191,84],[188,47,191,53],[188,54,191,55],[192,32,193,37],[186,64,187,71],[186,73,191,82],[188,64,191,70],[177,83,179,84],[171,5,173,6],[171,15,173,16],[171,62,173,63],[170,64,173,82],[168,7,173,14],[168,32,173,44],[189,56,191,57],[189,58,191,63],[159,83,161,84],[128,64,131,70],[126,64,127,71],[153,77,155,78],[183,83,185,84],[181,2,185,16],[186,33,191,37],[186,40,191,44],[186,47,187,52],[165,62,167,63],[165,83,167,84],[151,47,155,71],[159,58,161,63],[147,62,149,63],[126,47,127,52],[126,56,128,57],[132,47,133,55],[156,64,157,71],[156,73,161,82],[158,64,161,70],[162,64,163,69],[177,62,179,63],[164,64,167,82],[181,47,185,71],[189,29,191,31],[189,38,191,39],[189,45,191,46],[186,2,191,28],[194,2,197,4],[181,17,185,46],[121,79,125,82],[123,77,125,78],[138,64,139,69],[140,64,143,82],[126,73,131,82],[135,62,137,63],[132,64,133,69],[126,58,128,63],[121,47,125,71],[128,47,131,53],[129,56,131,57],[129,58,131,63],[159,71,161,72],[194,64,197,82],[195,15,197,16],[195,30,197,31],[195,45,197,46],[195,62,197,63],[194,7,197,14],[194,17,197,29],[194,32,197,44],[194,47,197,61],[192,47,193,55],[177,5,179,6],[177,15,179,16],[138,2,143,4],[132,7,133,12],[132,17,133,22],[134,2,137,4],[134,7,137,14],[174,2,179,4],[174,7,179,14],[174,17,179,29],[174,47,179,61],[164,32,167,44],[164,47,167,61],[164,17,167,29],[177,30,179,31],[177,45,179,46],[174,32,179,44],[171,30,173,31],[171,45,173,46],[168,17,173,29],[104,2,107,4],[108,2,113,4],[165,5,167,6],[165,15,167,16],[165,30,167,31],[165,45,167,46],[126,2,131,28],[168,47,173,61],[144,2,149,4],[114,2,119,4],[121,17,125,46],[129,29,131,31],[132,32,133,37],[156,40,161,44],[156,47,157,52],[159,29,161,31],[135,30,137,31],[121,2,125,16],[159,38,161,39],[147,30,149,31],[108,47,113,61],[138,7,143,14],[138,17,143,29],[168,64,169,69],[111,5,113,6],[104,7,107,14],[105,5,107,6],[87,15,89,16],[117,5,119,6],[117,15,119,16],[117,30,119,31],[117,45,119,46],[102,17,103,22],[159,56,161,57],[114,7,119,14],[114,17,119,29],[114,32,119,44],[114,47,119,61],[159,45,161,46],[158,47,161,53],[132,2,133,6],[126,33,131,37],[126,40,131,44],[151,17,155,46],[135,45,137,46],[156,58,158,63],[141,62,143,63],[117,62,119,63],[162,7,163,12],[162,17,163,22],[162,32,163,37],[162,47,163,55],[156,2,161,28],[134,17,137,29],[135,5,137,6],[135,15,137,16],[158,54,161,55],[141,30,143,31],[141,45,143,46],[138,32,143,44],[138,47,143,61],[147,5,149,6],[147,15,149,16],[151,2,155,16],[141,5,143,6],[162,2,163,6],[144,7,149,14],[144,17,149,29],[141,15,143,16],[156,56,158,57],[156,33,161,37],[212,1,213,83],[201,62,203,63],[201,5,203,6],[200,64,203,82],[201,15,203,16],[204,85,209,86],[204,32,209,44],[204,47,209,61],[206,64,209,82],[207,45,209,46],[207,62,209,63],[207,83,209,84],[201,83,203,84],[204,2,209,4],[204,7,209,14],[201,86,203,87],[144,85,149,86],[198,64,199,69],[189,71,191,72],[181,79,185,82],[183,77,185,78],[151,87,154,96],[105,15,107,16],[104,32,107,44],[104,47,107,61],[147,45,149,46],[129,71,131,72],[129,83,131,84],[135,83,137,84],[134,32,137,44],[134,47,137,61],[134,64,137,82],[144,47,149,61],[146,64,149,82],[144,32,149,44],[128,54,131,55],[121,72,125,76],[111,15,113,16],[111,30,113,31],[111,45,113,46],[10,60,19,74],[108,64,109,69],[11,9,22,57],[23,9,33,57],[34,9,41,57],[61,47,65,71],[66,56,68,57],[66,58,68,63],[56,17,59,31],[56,32,59,46],[56,47,59,63],[75,30,77,31],[75,62,77,63],[74,64,77,82],[87,30,89,31],[91,2,95,16],[105,30,107,31],[78,2,83,4],[87,5,89,6],[84,2,89,4],[91,17,95,46],[108,7,113,14],[108,17,113,29],[111,62,113,63],[250,1,250,13],[250,15,250,108],[251,1,251,13],[251,15,251,108],[252,1,252,13],[252,15,252,108],[247,1,247,13],[247,15,247,108],[248,1,248,13],[248,15,248,108],[249,1,249,13],[249,15,249,108],[261,1,261,13],[261,15,261,108],[256,1,256,13],[256,15,256,108],[257,1,257,13],[257,15,257,108],[258,1,258,13],[258,15,258,108],[253,1,253,13],[253,15,253,108],[254,1,254,13],[254,15,254,108],[255,1,255,13],[255,15,255,108],[259,1,259,13],[259,15,259,108],[260,1,260,13],[260,15,260,108],[277,1,277,108],[267,1,267,108],[268,1,268,108],[269,1,269,108],[271,1,271,108],[272,1,272,108],[273,1,273,108],[262,1,262,13],[262,15,262,108],[263,1,263,13],[263,15,263,108],[265,1,265,108],[266,1,266,108],[270,1,270,5],[264,1,264,6],[274,1,274,108],[275,1,275,108],[276,1,276,108],[243,1,243,13],[243,15,243,108],[244,1,244,13],[244,15,244,108],[246,1,246,13],[246,15,246,108],[242,1,242,13],[242,15,242,108],[245,15,245,108],[241,1,241,13],[241,15,241,108],[104,64,107,82],[105,45,107,46],[105,62,107,63],[228,1,228,13],[228,24,229,30],[228,35,229,36],[228,37,229,38],[228,39,229,40],[216,1,216,108],[207,5,209,6],[207,15,209,16],[207,30,209,31],[231,1,231,13],[232,1,232,13],[232,67,232,68],[232,69,233,79],[233,1,233,13],[104,17,107,29],[238,1,238,13],[238,15,238,108],[239,1,239,13],[239,15,239,108],[230,1,230,13],[230,15,230,108],[240,1,240,13],[240,15,240,108],[234,1,234,13],[234,15,234,108],[235,1,235,13],[235,15,235,108],[236,1,236,13],[236,15,236,108],[237,1,237,13],[237,15,237,108],[108,32,113,44],[129,38,131,39],[129,45,131,46],[99,38,101,39],[96,40,101,44],[99,29,101,31],[96,2,101,28],[68,54,71,55],[68,47,71,53],[98,54,101,55],[72,2,73,6],[74,32,77,44],[69,29,71,31],[66,2,71,28],[91,47,95,71],[84,47,89,61],[86,64,89,82],[78,7,83,14],[78,17,83,29],[96,33,101,37],[81,30,83,31],[110,64,113,82],[102,47,103,55],[96,47,97,52],[61,0,210,0],[72,7,73,12],[72,17,73,22],[72,32,73,37],[72,47,73,55],[72,64,73,69],[74,7,77,14],[78,47,83,61],[74,17,77,29],[75,15,77,16],[74,2,77,4],[81,5,83,6],[84,7,89,14],[81,15,83,16],[75,5,77,6],[84,17,89,29],[99,56,101,57],[99,58,101,63],[99,45,101,46],[102,32,103,37],[102,2,103,6],[102,7,103,12],[69,58,71,63],[116,64,119,82],[61,72,65,76],[63,77,65,78],[66,64,67,71],[69,71,71,72],[93,77,95,78],[87,45,89,46],[91,79,95,82],[74,47,77,61],[81,62,83,63],[75,45,77,46],[78,64,79,69],[61,17,65,46],[61,79,65,82],[68,64,71,70],[81,45,83,46],[84,32,89,44],[78,32,83,44],[47,0,60,0],[47,17,51,46],[47,47,51,71],[47,72,51,84],[60,88,60,105],[54,2,55,6],[54,7,55,16],[54,17,55,63],[54,64,55,84],[52,64,53,84],[56,64,57,84],[58,64,59,84],[56,2,59,6],[47,2,51,16],[47,85,53,108],[54,85,59,108],[52,47,53,63],[56,7,59,16],[226,1,226,13],[227,1,227,13],[228,41,229,42],[228,43,229,44],[228,45,229,46],[229,1,229,13],[198,17,203,29],[198,32,203,44],[198,47,203,61],[226,15,226,108],[227,15,227,108],[217,1,217,108],[218,1,218,108],[219,1,219,108],[220,1,220,108],[221,1,221,108],[222,1,222,108],[201,30,203,31],[201,45,203,46],[223,1,223,108],[204,17,209,29],[201,88,203,106],[198,2,203,4],[198,7,203,14],[137,99,140,108],[117,106,119,108],[41,2,44,8],[8,9,10,11],[4,2,4,7],[4,8,4,12],[1,8,2,19],[1,20,2,61],[1,63,1,71],[1,72,1,80],[1,81,1,87],[31,60,35,83],[36,60,37,93],[38,60,44,102],[1,88,1,94],[1,95,1,101],[1,102,1,108],[38,103,44,108],[4,22,4,24],[4,19,4,21],[4,13,4,15],[4,16,4,18],[4,25,4,27],[69,83,71,84],[174,110,179,116],[87,83,89,84],[123,83,125,84],[81,83,83,84],[75,83,77,84],[111,86,113,87],[111,88,113,106],[111,107,113,108],[87,106,89,108],[84,87,89,105],[171,83,173,84],[84,110,89,116],[84,85,89,86],[81,86,83,87],[81,88,83,106],[81,107,83,108],[90,88,90,105],[93,83,95,84],[111,83,113,84],[99,83,101,84],[107,87,110,96],[107,99,110,108],[151,99,154,108],[155,87,158,96],[204,110,209,116],[120,88,120,105],[186,56,188,57],[186,58,188,63],[176,64,179,82],[174,85,179,86],[181,72,185,76],[114,64,115,71],[144,64,145,71],[174,64,175,71],[204,64,205,71],[147,83,149,84],[151,72,155,76],[153,83,155,84],[151,79,155,82],[114,110,119,116],[144,110,149,116],[192,64,193,69],[141,88,143,106],[141,107,143,108],[117,83,119,84],[114,85,119,86],[141,83,143,84],[137,87,140,96],[98,47,101,53],[96,56,98,57],[99,87,102,108],[103,87,106,96],[103,99,106,108],[96,58,98,63],[66,73,71,82],[87,62,89,63],[96,64,97,71],[96,73,101,82],[99,71,101,72],[98,64,101,70],[91,72,95,76],[80,64,83,82],[102,64,103,69],[84,64,85,71],[66,47,67,52],[105,83,107,84],[155,99,158,108],[159,87,162,108],[163,87,166,96],[163,99,166,108],[197,87,200,96],[197,99,200,108],[167,87,170,96],[167,99,170,108],[181,87,184,96],[181,99,184,108],[185,87,188,96],[185,99,188,108],[189,87,192,108],[193,87,196,96],[193,99,196,108]]}
[]
[null,null,null,null,null,null,null,null,"健康保険",null,null,null,null,null,null,null,null,null,null,null,"被保険者報酬月額算定基礎届",null,null,null,null,null,null,null,null,null,null,null,null,null,null,null,null,null,null,null,null,null,null,null,null,null,null,null,null,null,null,null,null,null,null,null,null,null,null,null,null,null,null,"常務理事",null,null,null,null,null,null,null,null,"事務局長",null,null,null,null,null,null,null,null,"部　長",null,null,null,null,null,null,"課　長",null,null,null,null,null,null,"課長補佐",null,null,null,null,null,null,"担当者"]
[]
[]
[null,null,null,null,null,null,null,null,"令和",null,null,null,null,null,null,null,"年",null,null,null,null,null,"月",null,null,null,null,null,"日提出"]
[]
[null,null,"事業所\n所在地",null,null,null,null,null,null,null,null,null,null,null,null,null,null,null,null,null,null,null,null,null,null,null,null,null,null,null,null,null,null,null,null,null,null,null,null,null,null,null,null,null,null,null,null,null,null,null,null,null,null,null,null,null,null,null,null,null,"健康保険の記号"]
[]
[null,null,null,null,null,null,null,null,null,"〒"]
[]
[]
[]
[]
[]
[]
[]
[]
[]
[]
[]
[]
[]
[]
[null,null,"事業所\n名　称"]
[]
[]
[]
[]
[]
[]
[]
[null,null,null,null,null,null,null,null,null,null,null,null,null,null,null,null,null,null,null,null,null,null,null,null,null,null,null,null,null,null,null,null,null,null,null,null,null,null,null,null,null,null,null,null,null,null,null,null,null,null,null,null,null,null,null,null,null,null,null,null,"社会保険労務士記載欄"]
[]
[]
[null,null,"事業主\n氏　名"]
[]
[null,null,null,null,null,null,null,null,null,null,null,null,null,null,null,null,null,null,null,null,null,null,null,null,null,null,null,null,null,null,null,null,null,null,null,null,null,null,null,null,null,null,null,null,null,null,null,null,null,null,null,null,null,null,null,null,null,null,null,null,"　　　　　氏　　　名　　　等"]
[]
[]
[]
[]
[null,null,"電話番号"]
[]
[]
[]
[]
[]
[null,null,"①健康保険被保険者等番号",null,null,null,null,null,null,null,null,null,null,null,null,null,null,"②　被保険者氏名",null,null,null,null,null,null,null,null,null,null,null,null,null,null,null,null,null,null,null,null,null,null,null,null,null,null,null,null,null,"③　生年月日",null,null,null,null,null,null,null,null,null,null,null,null,null,null,null,null,null,null,null,null,null,null,null,null,"④　適用年月",null,null,null,null,null,null,null,null,null,null,null,null,"⑰　備考"]
[]
[]
[]
[]
[null,null,"⑤　従前の標準報酬月額",null,null,null,null,null,null,null,null,null,null,null,null,null,null,null,null,null,null,null,null,null,null,null,null,null,null,null,null,null,"⑥　従前改定月",null,null,null,null,null,null,null,null,null,null,null,null,null,null,"⑦　昇(降)給",null,null,null,null,null,null,null,null,null,null,null,null,null,null,null,null,"⑧　遡及支払額"]
[]
[null,null,"⑨",null,null,null,null,"⑩",null,null,null,null,null,null,null,null,null,"報酬月額",null,null,null,null,null,null,null,null,null,null,null,null,null,null,null,null,null,null,null,null,null,null,null,null,null,null,null,null,null,null,null,null,null,null,null,null,null,null,null,null,null,null,null,null,null,null,"⑭　総計（一定の基礎日数以上の月のみ）",null,null,null,null,null,null,null,null,null,null,null,null,null,null,null,null,null,null,null,null,"⑱決定後の標準報酬月額"]
[]
[null,null,"給与\n支給月",null,null,null,null,"給与計算の\n基礎日数",null,null,null,null,null,null,null,null,null,"⑪　通貨によるものの額",null,null,null,null,null,null,null,null,null,null,null,null,null,null,"⑫　現物によるものの額",null,null,null,null,null,null,null,null,null,null,null,null,null,null,"⑬　合計（⑪+⑫）",null,null,null,null,null,null,null,null,null,null,null,null,null,null,null,null,"⑮　平均額"]
[]
[null,null,null,null,null,null,null,null,null,null,null,null,null,null,null,null,null,null,null,null,null,null,null,null,null,null,null,null,null,null,null,null,null,null,null,null,null,null,null,null,null,null,null,null,null,null,null,null,null,null,null,null,null,null,null,null,null,null,null,null,null,null,null,null,"⑯　修正平均額"]
[]
[]
[null,null,null,null,null,null,null,null,null,null,null,null,null,null,null,null,null,null,null,null,null,null,null,null,null,null,null,null,null,null,null,null,null,null,null,null,null,null,null,null,null,null,null,null,null,null,null,null,null,null,null,null,null,null,null,null,null,null,null,null,null,null,null,null,null,null,null,null,null,null,null,null,null,null,null,null,null,null,null,9,null,null,null,null,null,null,null," 1. 二以上勤務",null,null,null,null,null,null,null,null,null,null,null," 2.月額変更予定"]
[]
[null,null,null,null,null,null,null,null,null,null,null,null,null,null,null,null,null,null,null,null,null,null,null,null,null,null,null,null,null,null,null,null,null,null,null,null,null,null,null,null,null,null,null,null,null,null,null,null,null,null,null,null,null,null,null,null,null,null,null,null,null,null,null,null,null,null,null,null,null,null,null,null,null,null,null,null,null,"年",null,null,null,null,null,"月"]
[]
[null,null,null,null,null,null,null,null,null,null,null,null,null,null,null,null,null,null,null,null,null,null,null,null,null,null,null,null,null,null,null,null,null,null,null,null,null,null,null,null,null,null,null,null,null,null,null,null,null,null,null,null,null,null,null,null,null,null,null,null,null,null,null,null,null,null,null,null,null,null,null,null,null,null,null,null,null,null,null,null,null,null,null,null,null,null,null," 3.途中入社",null,null,null,null,null,null,null,null,null,null,null,"4.病休・育休・休職等"]
[null,null,null,null,null,null,null,null,null,null,null,null,null,null,null,null,null,null,null,null,null,null,null,null,null,null,null,null,null,null,null,null,null,null,null,null,null,null,null,null,null,null,null,null,null,null,null,"⑦昇(降)給",null,null,null,null,null,null,null,null,null,null,"1．昇給",null,null,null,null,null,"⑧遡及支払額",null,null,null,null,null,null,null,null,null,null,null,null,null,null,null,null,null,null,null,null,null,null,null,null,null,null,null,null,null,null,null,null,null,null,null,null,null,null,null,null,null,null,null,null,null,1,2,1,2,1,2,3,4,5,6,7,8]
[null,null,null,null,null,null,null,null,null,null,null,null,null,null,null,null,null,null,null,null,null,null,null,null,null,null,null,null,null,null,null,null,null,null,null,null,null,null,null,null,null,null,null,null,null,null,null,null,null,null,null,null,null,null,null,null,null,null,null,null,null,null,null,null,null,null,null,null,null,null,null,null,null,null,null,null,null,null,null,null,null,null,null,null,null,null,null,null,null,null,null,null,null,null,null,null,null,null,null,null,null,null,null,null,null,null,null,null,null,null,false,false,false,false,false,false,false,false,false,false,false,false]
[null,null,null,null,null,null,null,null,null,null,null,null,null,null,null,null,null,null,null,null,null,null,null,null,null,null,null,null,null,null,null,null,null,null,null,null,null,null,null,null,null,null,null,null,null,null,null,null,null,null,null,null,null,null,"月"]
[null,null,null,null,null,null,null,null,null,null,null,null,null,null,null,null,null,null,null,null,null,null,null,null,null,null,null,null,null,"千円",null,null,null,null,null,null,null,null,"年",null,null,null,null,null,null,"月",null,null,null,null,null,null,null,null,null,null,null,null,"2．降給",null,null,null,null,null,null,null,null,null,null,null,null,"月",null,null,null,null,null,null,null,null,null,null,null,"円",null,null,null," 5. 短時間労働者（特定適用事業所等）"]
[]
[]
[null,null,"⑨支給月",null,null,null,null,"⑩日数",null,null,null,null,null,null,null,null,null,"⑪通貨",null,null,null,null,null,null,null,null,null,null,null,null,null,null,"⑫現物",null,null,null,null,null,null,null,null,null,null,null,null,null,null,"⑬合計(⑪＋⑫)",null,null,null,null,null,null,null,null,null,null,null,null,null,null,null,null,"⑭総計"]
[null,null,null,null,null,null,null,null,null,null,null,null,null,null,null,null,null,null,null,null,null,null,null,null,null,null,null,null,null,null,null,null,null,null,null,null,null,null,null,null,null,null,null,null,null,null,null,null,null,null,null,null,null,null,null,null,null,null,null,null,null,null,null,null,null,null,null,null,null,null,null,null,null,null,null,null,null,null,null,null,null,null,null,null,null,null,null," 6.パート",null,null,null,null,null,null,null,null,null,null,null,"7.年間平均"]
[null,null,4,null,null,null,null,null,null,null,null,null,null,null,null,null,null,null,null,null,null,null,null,null,null,null,null,null,null,null,null,null,null,null,null,null,null,null,null,null,null,null,null,null,null,null,null,{"$f":"R75+AG75","v":0},null,null,null,null,null,null,null,null,null,null,null,null,null,null,null,null,{"$f":"AV75+AV79+AV85","v":0}]
[null,null,null,null,null,"月",null,null,null,null,null,null,null,null,null,"日",null,null,null,null,null,null,null,null,null,null,null,null,null,null,"円",null,null,null,null,null,null,null,null,null,null,null,null,null,null,"円",null,null,null,null,null,null,null,null,null,null,null,null,null,null,null,null,"円",null,null,null,null,null,null,null,null,null,null,null,null,null,null,null,null,null,null,null,null,"円"]
[]
[null,null,null,null,null,null,null,null,null,null,null,null,null,null,null,null,null,null,null,null,null,null,null,null,null,null,null,null,null,null,null,null,null,null,null,null,null,null,null,null,null,null,null,null,null,null,null,null,null,null,null,null,null,null,null,null,null,null,null,null,null,null,null,null,null,null,null,null,null,null,null,null,null,null,null,null,null,null,null,null,null,null,null,null,null,null,null," 8.その他"]
[null,null,5,null,null,null,null,null,null,null,null,null,null,null,null,null,null,null,null,null,null,null,null,null,null,null,null,null,null,null,null,null,null,null,null,null,null,null,null,null,null,null,null,null,null,null,null,{"$f":"R79+AG79","v":0},null,null,null,null,null,null,null,null,null,null,null,null,null,null,null,null,"⑮平均額"]
[]
[null,null,null,null,null,null,null,null,null,null,null,null,null,null,null,null,null,null,null,null,null,null,null,null,null,null,null,null,null,null,null,null,null,null,null,null,null,null,null,null,null,null,null,null,null,null,null,null,null,null,null,null,null,null,null,null,null,null,null,null,null,null,null,null,{"$f":"ROUNDDOWN(BM75/3,0)","v":0}]
[null,null,null,null,null,"月",null,null,null,null,null,null,null,null,null,"日",null,null,null,null,null,null,null,null,null,null,null,null,null,null,"円",null,null,null,null,null,null,null,null,null,null,null,null,null,null,"円",null,null,null,null,null,null,null,null,null,null,null,null,null,null,null,null,"円",null,null,null,null,null,null,null,null,null,null,null,null,null,null,null,null,null,null,null,null,"円",null,null,"(",null,null,null,null,null,null,null,null,null,null,null,null,null,null,null,null,null,null,null,null,")"]
[]
[]
[null,null,6,null,null,null,null,null,null,null,null,null,null,null,null,null,null,null,null,null,null,null,null,null,null,null,null,null,null,null,null,null,null,null,null,null,null,null,null,null,null,null,null,null,null,null,null,{"$f":"R85+AG85","v":0},null,null,null,null,null,null,null,null,null,null,null,null,null,null,null,null,"⑯修正平均額",null,null,null,null,null,null,null,null,null,null,null,null,null,null,null,null,null,null,null,null,null,null,{"$f":"IF(AND(DG85>0.5,DG85<63000),58,IF(AND(DG85>=63000,DG85<73000),68,IF(AND(DG85>=73000,DG85<83000),78,IF(AND(DG85>=83000,DG85<93000),88,IF(AND(DG85>=93000,DG85<101000),98,IF(AND(DG85>=101000,DG85<107000),104,IF(AND(DG85>=107000,DG85<114000),110,IF(AND(DG85>=114000,DG85<122000),118,IF(AND(DG85>=122000,DG85<130000),126,IF(AND(DG85>=130000,DG85<138000),134,IF(AND(DG85>=138000,DG85<146000),142,IF(AND(DG85>=146000,DG85<155000),150,IF(AND(DG85>=155000,DG85<165000),160,IF(AND(DG85>=165000,DG85<175000),170,IF(AND(DG85>=175000,DG85<185000),180,IF(AND(DG85>=185000,DG85<195000),190,IF(AND(DG85>=195000,DG85<210000),200,IF(AND(DG85>=210000,DG85<230000),220,IF(AND(DG85>=230000,DG85<250000),240,IF(AND(DG85>=250000,DG85<270000),260,IF(AND(DG85>=270000,DG85<290000),280,IF(AND(DG85>=290000,DG85<310000),300,IF(AND(DG85>=310000,DG85<330000),320,IF(AND(DG85>=330000,DG85<350000),340,IF(AND(DG85>=350000,DG85<370000),360,IF(AND(DG85>=370000,DG85<395000),380,IF(AND(DG85>=395000,DG85<425000),410,IF(AND(DG85>=425000,DG85<455000),440,IF(AND(DG85>=455000,DG85<485000),470,IF(AND(DG85>=485000,DG85<515000),500,IF(AND(DG85>=515000,DG85<545000),530,IF(AND(DG85>=545000,DG85<575000),560,IF(AND(DG85>=575000,DG85<605000),590,IF(AND(DG85>=605000,DG85<635000),620,IF(AND(DG85>=635000,DG85<665000),650,IF(AND(DG85>=665000,DG85<695000),680,IF(AND(DG85>=695000,DG85<730000),710,IF(AND(DG85>=730000,DG85<770000),750,IF(AND(DG85>=770000,DG85<810000),790,IF(AND(DG85>=810000,DG85<855000),830,IF(AND(DG85>=855000,DG85<905000),880,IF(AND(DG85>=905000,DG85<955000),930,IF(AND(DG85>=955000,DG85<1005000),980,IF(AND(DG85>=1005000,DG85<1055000),1030,IF(AND(DG85>=1055000,DG85<1115000),1090,IF(AND(DG85>=1115000,DG85<1175000),1150,IF(AND(DG85>=1175000,DG85<1235000),1210,IF(AND(DG85>=1235000,DG85<1295000),1270,IF(AND(DG85>=1295000,DG85<1355000),1330,IF(AND(DG85>=1355000,DG85<1000000000),1390,\"\"))))))))))))))))))))))))))))))))))))))))))))))))))","v":""},null,null,null,null,null,null,null,null,null,null,null,null,null,null,null,null,null,null,null,null,null,null,{"$f":"IF(BV67=\"\",BM81,BM87)","v":0}]
[]
[]
[null,null,null,null,null,"月",null,null,null,null,null,null,null,null,null,"日",null,null,null,null,null,null,null,null,null,null,null,null,null,null,"円",null,null,null,null,null,null,null,null,null,null,null,null,null,null,"円",null,null,null,null,null,null,null,null,null,null,null,null,null,null,null,null,"円",null,null,null,null,null,null,null,null,null,null,null,null,null,null,null,null,null,null,null,null,"円",null,null,null,null,null,null,null,null,null,null,null,null,null,null,null,null,null,null,null,null,null,null,"千円"]
[]
[]
[]
[null,null,null,null,null,null,null,null,null,null,null,null,null,null,null,null,null,null,null,null,null,null,null,null,null,null,null,null,null,null,null,null,null,null,null,null,null,null,null,null,null,null,null,null,null,null,null,null,null,null,null,null,null,null,null,null,null,null,null,null,null,null,null,null,null,null,null,null,null,null,null,null,null,null,null,null,null,null,null,9,null,null,null,null,null,null,null," 1. 二以上勤務",null,null,null,null,null,null,null,null,null,null,null," 2.月額変更予定"]
[]
[null,null,null,null,null,null,null,null,null,null,null,null,null,null,null,null,null,null,null,null,null,null,null,null,null,null,null,null,null,null,null,null,null,null,null,null,null,null,null,null,null,null,null,null,null,null,null,null,null,null,null,null,null,null,null,null,null,null,null,null,null,null,null,null,null,null,null,null,null,null,null,null,null,null,null,null,null,"年",null,null,null,null,null,"月"]
[]
[null,null,null,null,null,null,null,null,null,null,null,null,null,null,null,null,null,null,null,null,null,null,null,null,null,null,null,null,null,null,null,null,null,null,null,null,null,null,null,null,null,null,null,null,null,null,null,null,null,null,null,null,null,null,null,null,null,null,null,null,null,null,null,null,null,null,null,null,null,null,null,null,null,null,null,null,null,null,null,null,null,null,null,null,null,null,null," 3.途中入社",null,null,null,null,null,null,null,null,null,null,null,"4.病休・育休・休職等"]
[null,null,null,null,null,null,null,null,null,null,null,null,null,null,null,null,null,null,null,null,null,null,null,null,null,null,null,null,null,null,null,null,null,null,null,null,null,null,null,null,null,null,null,null,null,null,null,"⑦昇(降)給",null,null,null,null,null,null,null,null,null,null,"1．昇給",null,null,null,null,null,"⑧遡及支払額",null,null,null,null,null,null,null,null,null,null,null,null,null,null,null,null,null,null,null,null,null,null,null,null,null,null,null,null,null,null,null,null,null,null,null,null,null,null,null,null,null,null,null,null,null,1,2,1,2,1,2,3,4,5,6,7,8]
[null,null,null,null,null,null,null,null,null,null,null,null,null,null,null,null,null,null,null,null,null,null,null,null,null,null,null,null,null,null,null,null,null,null,null,null,null,null,null,null,null,null,null,null,null,null,null,null,null,null,null,null,null,null,null,null,null,null,null,null,null,null,null,null,null,null,null,null,null,null,null,null,null,null,null,null,null,null,null,null,null,null,null,null,null,null,null,null,null,null,null,null,null,null,null,null,null,null,null,null,null,null,null,null,null,null,null,null,null,null,false,false,false,false,false,false,false,false,false,false,false,false]
[null,null,null,null,null,null,null,null,null,null,null,null,null,null,null,null,null,null,null,null,null,null,null,null,null,null,null,null,null,null,null,null,null,null,null,null,null,null,null,null,null,null,null,null,null,null,null,null,null,null,null,null,null,null,"月"]
[null,null,null,null,null,null,null,null,null,null,null,null,null,null,null,null,null,null,null,null,null,null,null,null,null,null,null,null,null,"千円",null,null,null,null,null,null,null,null,"年",null,null,null,null,null,null,"月",null,null,null,null,null,null,null,null,null,null,null,null,"2．降給",null,null,null,null,null,null,null,null,null,null,null,null,"月",null,null,null,null,null,null,null,null,null,null,null,"円",null,null,null," 5. 短時間労働者（特定適用事業所等）"]
[]
[]
[null,null,"⑨支給月",null,null,null,null,"⑩日数",null,null,null,null,null,null,null,null,null,"⑪通貨",null,null,null,null,null,null,null,null,null,null,null,null,null,null,"⑫現物",null,null,null,null,null,null,null,null,null,null,null,null,null,null,"⑬合計(⑪＋⑫)",null,null,null,null,null,null,null,null,null,null,null,null,null,null,null,null,"⑭総計"]
[null,null,null,null,null,null,null,null,null,null,null,null,null,null,null,null,null,null,null,null,null,null,null,null,null,null,null,null,null,null,null,null,null,null,null,null,null,null,null,null,null,null,null,null,null,null,null,null,null,null,null,null,null,null,null,null,null,null,null,null,null,null,null,null,null,null,null,null,null,null,null,null,null,null,null,null,null,null,null,null,null,null,null,null,null,null,null," 6.パート",null,null,null,null,null,null,null,null,null,null,null,"7.年間平均"]
[null,null,4,null,null,null,null,null,null,null,null,null,null,null,null,null,null,null,null,null,null,null,null,null,null,null,null,null,null,null,null,null,null,null,null,null,null,null,null,null,null,null,null,null,null,null,null,{"$f":"R105+AG105","v":0},null,null,null,null,null,null,null,null,null,null,null,null,null,null,null,null,{"$f":"AV105+AV109+AV115","v":0}]
[null,null,null,null,null,"月",null,null,null,null,null,null,null,null,null,"日",null,null,null,null,null,null,null,null,null,null,null,null,null,null,"円",null,null,null,null,null,null,null,null,null,null,null,null,null,null,"円",null,null,null,null,null,null,null,null,null,null,null,null,null,null,null,null,"円",null,null,null,null,null,null,null,null,null,null,null,null,null,null,null,null,null,null,null,null,"円"]
[]
[null,null,null,null,null,null,null,null,null,null,null,null,null,null,null,null,null,null,null,null,null,null,null,null,null,null,null,null,null,null,null,null,null,null,null,null,null,null,null,null,null,null,null,null,null,null,null,null,null,null,null,null,null,null,null,null,null,null,null,null,null,null,null,null,null,null,null,null,null,null,null,null,null,null,null,null,null,null,null,null,null,null,null,null,null,null,null," 8.その他"]
[null,null,5,null,null,null,null,null,null,null,null,null,null,null,null,null,null,null,null,null,null,null,null,null,null,null,null,null,null,null,null,null,null,null,null,null,null,null,null,null,null,null,null,null,null,null,null,{"$f":"R109+AG109","v":0},null,null,null,null,null,null,null,null,null,null,null,null,null,null,null,null,"⑮平均額"]
[]
[null,null,null,null,null,null,null,null,null,null,null,null,null,null,null,null,null,null,null,null,null,null,null,null,null,null,null,null,null,null,null,null,null,null,null,null,null,null,null,null,null,null,null,null,null,null,null,null,null,null,null,null,null,null,null,null,null,null,null,null,null,null,null,null,{"$f":"ROUNDDOWN(BM105/3,0)","v":0}]
[null,null,null,null,null,"月",null,null,null,null,null,null,null,null,null,"日",null,null,null,null,null,null,null,null,null,null,null,null,null,null,"円",null,null,null,null,null,null,null,null,null,null,null,null,null,null,"円",null,null,null,null,null,null,null,null,null,null,null,null,null,null,null,null,"円",null,null,null,null,null,null,null,null,null,null,null,null,null,null,null,null,null,null,null,null,"円",null,null,"(",null,null,null,null,null,null,null,null,null,null,null,null,null,null,null,null,null,null,null,null,")"]
[]
[]
[null,null,6,null,null,null,null,null,null,null,null,null,null,null,null,null,null,null,null,null,null,null,null,null,null,null,null,null,null,null,null,null,null,null,null,null,null,null,null,null,null,null,null,null,null,null,null,{"$f":"R115+AG115","v":0},null,null,null,null,null,null,null,null,null,null,null,null,null,null,null,null,"⑯修正平均額",null,null,null,null,null,null,null,null,null,null,null,null,null,null,null,null,null,null,null,null,null,null,{"$f":"IF(AND(DG115>0.5,DG115<63000),58,IF(AND(DG115>=63000,DG115<73000),68,IF(AND(DG115>=73000,DG115<83000),78,IF(AND(DG115>=83000,DG115<93000),88,IF(AND(DG115>=93000,DG115<101000),98,IF(AND(DG115>=101000,DG115<107000),104,IF(AND(DG115>=107000,DG115<114000),110,IF(AND(DG115>=114000,DG115<122000),118,IF(AND(DG115>=122000,DG115<130000),126,IF(AND(DG115>=130000,DG115<138000),134,IF(AND(DG115>=138000,DG115<146000),142,IF(AND(DG115>=146000,DG115<155000),150,IF(AND(DG115>=155000,DG115<165000),160,IF(AND(DG115>=165000,DG115<175000),170,IF(AND(DG115>=175000,DG115<185000),180,IF(AND(DG115>=185000,DG115<195000),190,IF(AND(DG115>=195000,DG115<210000),200,IF(AND(DG115>=210000,DG115<230000),220,IF(AND(DG115>=230000,DG115<250000),240,IF(AND(DG115>=250000,DG115<270000),260,IF(AND(DG115>=270000,DG115<290000),280,IF(AND(DG115>=290000,DG115<310000),300,IF(AND(DG115>=310000,DG115<330000),320,IF(AND(DG115>=330000,DG115<350000),340,IF(AND(DG115>=350000,DG115<370000),360,IF(AND(DG115>=370000,DG115<395000),380,IF(AND(DG115>=395000,DG115<425000),410,IF(AND(DG115>=425000,DG115<455000),440,IF(AND(DG115>=455000,DG115<485000),470,IF(AND(DG115>=485000,DG115<515000),500,IF(AND(DG115>=515000,DG115<545000),530,IF(AND(DG115>=545000,DG115<575000),560,IF(AND(DG115>=575000,DG115<605000),590,IF(AND(DG115>=605000,DG115<635000),620,IF(AND(DG115>=635000,DG115<665000),650,IF(AND(DG115>=665000,DG115<695000),680,IF(AND(DG115>=695000,DG115<730000),710,IF(AND(DG115>=730000,DG115<770000),750,IF(AND(DG115>=770000,DG115<810000),790,IF(AND(DG115>=810000,DG115<855000),830,IF(AND(DG115>=855000,DG115<905000),880,IF(AND(DG115>=905000,DG115<955000),930,IF(AND(DG115>=955000,DG115<1005000),980,IF(AND(DG115>=1005000,DG115<1055000),1030,IF(AND(DG115>=1055000,DG115<1115000),1090,IF(AND(DG115>=1115000,DG115<1175000),1150,IF(AND(DG115>=1175000,DG115<1235000),1210,IF(AND(DG115>=1235000,DG115<1295000),1270,IF(AND(DG115>=1295000,DG115<1355000),1330,IF(AND(DG115>=1355000,DG115<1000000000),1390,\"\"))))))))))))))))))))))))))))))))))))))))))))))))))","v":""},null,null,null,null,null,null,null,null,null,null,null,null,null,null,null,null,null,null,null,null,null,null,{"$f":"IF(BV97=\"\",BM111,BM117)","v":0}]
[]
[]
[null,null,null,null,null,"月",null,null,null,null,null,null,null,null,null,"日",null,null,null,null,null,null,null,null,null,null,null,null,null,null,"円",null,null,null,null,null,null,null,null,null,null,null,null,null,null,"円",null,null,null,null,null,null,null,null,null,null,null,null,null,null,null,null,"円",null,null,null,null,null,null,null,null,null,null,null,null,null,null,null,null,null,null,null,null,"円",null,null,null,null,null,null,null,null,null,null,null,null,null,null,null,null,null,null,null,null,null,null,"千円"]
[]
[]
[]
[null,null,null,null,null,null,null,null,null,null,null,null,null,null,null,null,null,null,null,null,null,null,null,null,null,null,null,null,null,null,null,null,null,null,null,null,null,null,null,null,null,null,null,null,null,null,null,null,null,null,null,null,null,null,null,null,null,null,null,null,null,null,null,null,null,null,null,null,null,null,null,null,null,null,null,null,null,null,null,9,null,null,null,null,null,null,null," 1. 二以上勤務",null,null,null,null,null,null,null,null,null,null,null," 2.月額変更予定"]
[]
[null,null,null,null,null,null,null,null,null,null,null,null,null,null,null,null,null,null,null,null,null,null,null,null,null,null,null,null,null,null,null,null,null,null,null,null,null,null,null,null,null,null,null,null,null,null,null,null,null,null,null,null,null,null,null,null,null,null,null,null,null,null,null,null,null,null,null,null,null,null,null,null,null,null,null,null,null,"年",null,null,null,null,null,"月"]
[]
[null,null,null,null,null,null,null,null,null,null,null,null,null,null,null,null,null,null,null,null,null,null,null,null,null,null,null,null,null,null,null,null,null,null,null,null,null,null,null,null,null,null,null,null,null,null,null,null,null,null,null,null,null,null,null,null,null,null,null,null,null,null,null,null,null,null,null,null,null,null,null,null,null,null,null,null,null,null,null,null,null,null,null,null,null,null,null," 3.途中入社",null,null,null,null,null,null,null,null,null,null,null,"4.病休・育休・休職等"]
[null,null,null,null,null,null,null,null,null,null,null,null,null,null,null,null,null,null,null,null,null,null,null,null,null,null,null,null,null,null,null,null,null,null,null,null,null,null,null,null,null,null,null,null,null,null,null,"⑦昇(降)給",null,null,null,null,null,null,null,null,null,null,"1．昇給",null,null,null,null,null,"⑧遡及支払額",null,null,null,null,null,null,null,null,null,null,null,null,null,null,null,null,null,null,null,null,null,null,null,null,null,null,null,null,null,null,null,null,null,null,null,null,null,null,null,null,null,null,null,null,null,1,2,1,2,1,2,3,4,5,6,7,8]
[null,null,null,null,null,null,null,null,null,null,null,null,null,null,null,null,null,null,null,null,null,null,null,null,null,null,null,null,null,null,null,null,null,null,null,null,null,null,null,null,null,null,null,null,null,null,null,null,null,null,null,null,null,null,null,null,null,null,null,null,null,null,null,null,null,null,null,null,null,null,null,null,null,null,null,null,null,null,null,null,null,null,null,null,null,null,null,null,null,null,null,null,null,null,null,null,null,null,null,null,null,null,null,null,null,null,null,null,null,null,false,false,false,true,false,false,false,false,false,false,false,false]
[null,null,null,null,null,null,null,null,null,null,null,null,null,null,null,null,null,null,null,null,null,null,null,null,null,null,null,null,null,null,null,null,null,null,null,null,null,null,null,null,null,null,null,null,null,null,null,null,null,null,null,null,null,null,"月"]
[null,null,null,null,null,null,null,null,null,null,null,null,null,null,null,null,null,null,null,null,null,null,null,null,null,null,null,null,null,"千円",null,null,null,null,null,null,null,null,"年",null,null,null,null,null,null,"月",null,null,null,null,null,null,null,null,null,null,null,null,"2．降給",null,null,null,null,null,null,null,null,null,null,null,null,"月",null,null,null,null,null,null,null,null,null,null,null,"円",null,null,null," 5. 短時間労働者（特定適用事業所等）"]
[]
[]
[null,null,"⑨支給月",null,null,null,null,"⑩日数",null,null,null,null,null,null,null,null,null,"⑪通貨",null,null,null,null,null,null,null,null,null,null,null,null,null,null,"⑫現物",null,null,null,null,null,null,null,null,null,null,null,null,null,null,"⑬合計(⑪＋⑫)",null,null,null,null,null,null,null,null,null,null,null,null,null,null,null,null,"⑭総計"]
[null,null,null,null,null,null,null,null,null,null,null,null,null,null,null,null,null,null,null,null,null,null,null,null,null,null,null,null,null,null,null,null,null,null,null,null,null,null,null,null,null,null,null,null,null,null,null,null,null,null,null,null,null,null,null,null,null,null,null,null,null,null,null,null,null,null,null,null,null,null,null,null,null,null,null,null,null,null,null,null,null,null,null,null,null,null,null," 6.パート",null,null,null,null,null,null,null,null,null,null,null,"7.年間平均"]
[null,null,4,null,null,null,null,null,null,null,null,null,null,null,null,null,null,null,null,null,null,null,null,null,null,null,null,null,null,null,null,null,null,null,null,null,null,null,null,null,null,null,null,null,null,null,null,{"$f":"R135+AG135","v":0},null,null,null,null,null,null,null,null,null,null,null,null,null,null,null,null,{"$f":"AV135+AV139+AV145","v":0}]
[null,null,null,null,null,"月",null,null,null,null,null,null,null,null,null,"日",null,null,null,null,null,null,null,null,null,null,null,null,null,null,"円",null,null,null,null,null,null,null,null,null,null,null,null,null,null,"円",null,null,null,null,null,null,null,null,null,null,null,null,null,null,null,null,"円",null,null,null,null,null,null,null,null,null,null,null,null,null,null,null,null,null,null,null,null,"円"]
[]
[null,null,null,null,null,null,null,null,null,null,null,null,null,null,null,null,null,null,null,null,null,null,null,null,null,null,null,null,null,null,null,null,null,null,null,null,null,null,null,null,null,null,null,null,null,null,null,null,null,null,null,null,null,null,null,null,null,null,null,null,null,null,null,null,null,null,null,null,null,null,null,null,null,null,null,null,null,null,null,null,null,null,null,null,null,null,null," 8.その他"]
[null,null,5,null,null,null,null,null,null,null,null,null,null,null,null,null,null,null,null,null,null,null,null,null,null,null,null,null,null,null,null,null,null,null,null,null,null,null,null,null,null,null,null,null,null,null,null,{"$f":"R139+AG139","v":0},null,null,null,null,null,null,null,null,null,null,null,null,null,null,null,null,"⑮平均額"]
[]
[null,null,null,null,null,null,null,null,null,null,null,null,null,null,null,null,null,null,null,null,null,null,null,null,null,null,null,null,null,null,null,null,null,null,null,null,null,null,null,null,null,null,null,null,null,null,null,null,null,null,null,null,null,null,null,null,null,null,null,null,null,null,null,null,{"$f":"ROUNDDOWN(BM135/3,0)","v":0}]
[null,null,null,null,null,"月",null,null,null,null,null,null,null,null,null,"日",null,null,null,null,null,null,null,null,null,null,null,null,null,null,"円",null,null,null,null,null,null,null,null,null,null,null,null,null,null,"円",null,null,null,null,null,null,null,null,null,null,null,null,null,null,null,null,"円",null,null,null,null,null,null,null,null,null,null,null,null,null,null,null,null,null,null,null,null,"円",null,null,"(",null,null,null,null,null,null,null,null,null,null,null,null,null,null,null,null,null,null,null,null,")"]
[]
[]
[null,null,6,null,null,null,null,null,null,null,null,null,null,null,null,null,null,null,null,null,null,null,null,null,null,null,null,null,null,null,null,null,null,null,null,null,null,null,null,null,null,null,null,null,null,null,null,{"$f":"R145+AG145","v":0},null,null,null,null,null,null,null,null,null,null,null,null,null,null,null,null,"⑯修正平均額",null,null,null,null,null,null,null,null,null,null,null,null,null,null,null,null,null,null,null,null,null,null,{"$f":"IF(AND(DG145>0.5,DG145<63000),58,IF(AND(DG145>=63000,DG145<73000),68,IF(AND(DG145>=73000,DG145<83000),78,IF(AND(DG145>=83000,DG145<93000),88,IF(AND(DG145>=93000,DG145<101000),98,IF(AND(DG145>=101000,DG145<107000),104,IF(AND(DG145>=107000,DG145<114000),110,IF(AND(DG145>=114000,DG145<122000),118,IF(AND(DG145>=122000,DG145<130000),126,IF(AND(DG145>=130000,DG145<138000),134,IF(AND(DG145>=138000,DG145<146000),142,IF(AND(DG145>=146000,DG145<155000),150,IF(AND(DG145>=155000,DG145<165000),160,IF(AND(DG145>=165000,DG145<175000),170,IF(AND(DG145>=175000,DG145<185000),180,IF(AND(DG145>=185000,DG145<195000),190,IF(AND(DG145>=195000,DG145<210000),200,IF(AND(DG145>=210000,DG145<230000),220,IF(AND(DG145>=230000,DG145<250000),240,IF(AND(DG145>=250000,DG145<270000),260,IF(AND(DG145>=270000,DG145<290000),280,IF(AND(DG145>=290000,DG145<310000),300,IF(AND(DG145>=310000,DG145<330000),320,IF(AND(DG145>=330000,DG145<350000),340,IF(AND(DG145>=350000,DG145<370000),360,IF(AND(DG145>=370000,DG145<395000),380,IF(AND(DG145>=395000,DG145<425000),410,IF(AND(DG145>=425000,DG145<455000),440,IF(AND(DG145>=455000,DG145<485000),470,IF(AND(DG145>=485000,DG145<515000),500,IF(AND(DG145>=515000,DG145<545000),530,IF(AND(DG145>=545000,DG145<575000),560,IF(AND(DG145>=575000,DG145<605000),590,IF(AND(DG145>=605000,DG145<635000),620,IF(AND(DG145>=635000,DG145<665000),650,IF(AND(DG145>=665000,DG145<695000),680,IF(AND(DG145>=695000,DG145<730000),710,IF(AND(DG145>=730000,DG145<770000),750,IF(AND(DG145>=770000,DG145<810000),790,IF(AND(DG145>=810000,DG145<855000),830,IF(AND(DG145>=855000,DG145<905000),880,IF(AND(DG145>=905000,DG145<955000),930,IF(AND(DG145>=955000,DG145<1005000),980,IF(AND(DG145>=1005000,DG145<1055000),1030,IF(AND(DG145>=1055000,DG145<1115000),1090,IF(AND(DG145>=1115000,DG145<1175000),1150,IF(AND(DG145>=1175000,DG145<1235000),1210,IF(AND(DG145>=1235000,DG145<1295000),1270,IF(AND(DG145>=1295000,DG145<1355000),1330,IF(AND(DG145>=1355000,DG145<1000000000),1390,\"\"))))))))))))))))))))))))))))))))))))))))))))))))))","v":""},null,null,null,null,null,null,null,null,null,null,null,null,null,null,null,null,null,null,null,null,null,null,{"$f":"IF(BV127=\"\",BM141,BM147)","v":0}]
[]
[]
[null,null,null,null,null,"月",null,null,null,null,null,null,null,null,null,"日",null,null,null,null,null,null,null,null,null,null,null,null,null,null,"円",null,null,null,null,null,null,null,null,null,null,null,null,null,null,"円",null,null,null,null,null,null,null,null,null,null,null,null,null,null,null,null,"円",null,null,null,null,null,null,null,null,null,null,null,null,null,null,null,null,null,null,null,null,"円",null,null,null,null,null,null,null,null,null,null,null,null,null,null,null,null,null,null,null,null,null,null,"千円"]
[]
[]
[]
[null,null,null,null,null,null,null,null,null,null,null,null,null,null,null,null,null,null,null,null,null,null,null,null,null,null,null,null,null,null,null,null,null,null,null,null,null,null,null,null,null,null,null,null,null,null,null,null,null,null,null,null,null,null,null,null,null,null,null,null,null,null,null,null,null,null,null,null,null,null,null,null,null,null,null,null,null,null,null,9,null,null,null,null,null,null,null," 1. 二以上勤務",null,null,null,null,null,null,null,null,null,null,null," 2.月額変更予定"]
[]
[null,null,null,null,null,null,null,null,null,null,null,null,null,null,null,null,null,null,null,null,null,null,null,null,null,null,null,null,null,null,null,null,null,null,null,null,null,null,null,null,null,null,null,null,null,null,null,null,null,null,null,null,null,null,null,null,null,null,null,null,null,null,null,null,null,null,null,null,null,null,null,null,null,null,null,null,null,"年",null,null,null,null,null,"月"]
[]
[null,null,null,null,null,null,null,null,null,null,null,null,null,null,null,null,null,null,null,null,null,null,null,null,null,null,null,null,null,null,null,null,null,null,null,null,null,null,null,null,null,null,null,null,null,null,null,null,null,null,null,null,null,null,null,null,null,null,null,null,null,null,null,null,null,null,null,null,null,null,null,null,null,null,null,null,null,null,null,null,null,null,null,null,null,null,null," 3.途中入社",null,null,null,null,null,null,null,null,null,null,null,"4.病休・育休・休職等"]
[null,null,null,null,null,null,null,null,null,null,null,null,null,null,null,null,null,null,null,null,null,null,null,null,null,null,null,null,null,null,null,null,null,null,null,null,null,null,null,null,null,null,null,null,null,null,null,"⑦昇(降)給",null,null,null,null,null,null,null,null,null,null,"1．昇給",null,null,null,null,null,"⑧遡及支払額",null,null,null,null,null,null,null,null,null,null,null,null,null,null,null,null,null,null,null,null,null,null,null,null,null,null,null,null,null,null,null,null,null,null,null,null,null,null,null,null,null,null,null,null,null,1,2,1,2,1,2,3,4,5,6,7,8]
[null,null,null,null,null,null,null,null,null,null,null,null,null,null,null,null,null,null,null,null,null,null,null,null,null,null,null,null,null,null,null,null,null,null,null,null,null,null,null,null,null,null,null,null,null,null,null,null,null,null,null,null,null,null,null,null,null,null,null,null,null,null,null,null,null,null,null,null,null,null,null,null,null,null,null,null,null,null,null,null,null,null,null,null,null,null,null,null,null,null,null,null,null,null,null,null,null,null,null,null,null,null,null,null,null,null,null,null,null,null,false,false,false,false,false,false,false,false,false,false,false,false]
[null,null,null,null,null,null,null,null,null,null,null,null,null,null,null,null,null,null,null,null,null,null,null,null,null,null,null,null,null,null,null,null,null,null,null,null,null,null,null,null,null,null,null,null,null,null,null,null,null,null,null,null,null,null,"月"]
[null,null,null,null,null,null,null,null,null,null,null,null,null,null,null,null,null,null,null,null,null,null,null,null,null,null,null,null,null,"千円",null,null,null,null,null,null,null,null,"年",null,null,null,null,null,null,"月",null,null,null,null,null,null,null,null,null,null,null,null,"2．降給",null,null,null,null,null,null,null,null,null,null,null,null,"月",null,null,null,null,null,null,null,null,null,null,null,"円",null,null,null," 5. 短時間労働者（特定適用事業所等）"]
[]
[]
[null,null,"⑨支給月",null,null,null,null,"⑩日数",null,null,null,null,null,null,null,null,null,"⑪通貨",null,null,null,null,null,null,null,null,null,null,null,null,null,null,"⑫現物",null,null,null,null,null,null,null,null,null,null,null,null,null,null,"⑬合計(⑪＋⑫)",null,null,null,null,null,null,null,null,null,null,null,null,null,null,null,null,"⑭総計"]
[null,null,null,null,null,null,null,null,null,null,null,null,null,null,null,null,null,null,null,null,null,null,null,null,null,null,null,null,null,null,null,null,null,null,null,null,null,null,null,null,null,null,null,null,null,null,null,null,null,null,null,null,null,null,null,null,null,null,null,null,null,null,null,null,null,null,null,null,null,null,null,null,null,null,null,null,null,null,null,null,null,null,null,null,null,null,null," 6.パート",null,null,null,null,null,null,null,null,null,null,null,"7.年間平均"]
[null,null,4,null,null,null,null,null,null,null,null,null,null,null,null,null,null,null,null,null,null,null,null,null,null,null,null,null,null,null,null,null,null,null,null,null,null,null,null,null,null,null,null,null,null,null,null,{"$f":"R165+AG165","v":0},null,null,null,null,null,null,null,null,null,null,null,null,null,null,null,null,{"$f":"AV165+AV169+AV175","v":0}]
[null,null,null,null,null,"月",null,null,null,null,null,null,null,null,null,"日",null,null,null,null,null,null,null,null,null,null,null,null,null,null,"円",null,null,null,null,null,null,null,null,null,null,null,null,null,null,"円",null,null,null,null,null,null,null,null,null,null,null,null,null,null,null,null,"円",null,null,null,null,null,null,null,null,null,null,null,null,null,null,null,null,null,null,null,null,"円"]
[]
[null,null,null,null,null,null,null,null,null,null,null,null,null,null,null,null,null,null,null,null,null,null,null,null,null,null,null,null,null,null,null,null,null,null,null,null,null,null,null,null,null,null,null,null,null,null,null,null,null,null,null,null,null,null,null,null,null,null,null,null,null,null,null,null,null,null,null,null,null,null,null,null,null,null,null,null,null,null,null,null,null,null,null,null,null,null,null," 8.その他"]
[null,null,5,null,null,null,null,null,null,null,null,null,null,null,null,null,null,null,null,null,null,null,null,null,null,null,null,null,null,null,null,null,null,null,null,null,null,null,null,null,null,null,null,null,null,null,null,{"$f":"R169+AG169","v":0},null,null,null,null,null,null,null,null,null,null,null,null,null,null,null,null,"⑮平均額"]
[]
[null,null,null,null,null,null,null,null,null,null,null,null,null,null,null,null,null,null,null,null,null,null,null,null,null,null,null,null,null,null,null,null,null,null,null,null,null,null,null,null,null,null,null,null,null,null,null,null,null,null,null,null,null,null,null,null,null,null,null,null,null,null,null,null,{"$f":"ROUNDDOWN(BM165/3,0)","v":0}]
[null,null,null,null,null,"月",null,null,null,null,null,null,null,null,null,"日",null,null,null,null,null,null,null,null,null,null,null,null,null,null,"円",null,null,null,null,null,null,null,null,null,null,null,null,null,null,"円",null,null,null,null,null,null,null,null,null,null,null,null,null,null,null,null,"円",null,null,null,null,null,null,null,null,null,null,null,null,null,null,null,null,null,null,null,null,"円",null,null,"(",null,null,null,null,null,null,null,null,null,null,null,null,null,null,null,null,null,null,null,null,")"]
[]
[]
[null,null,6,null,null,null,null,null,null,null,null,null,null,null,null,null,null,null,null,null,null,null,null,null,null,null,null,null,null,null,null,null,null,null,null,null,null,null,null,null,null,null,null,null,null,null,null,{"$f":"R175+AG175","v":0},null,null,null,null,null,null,null,null,null,null,null,null,null,null,null,null,"⑯修正平均額",null,null,null,null,null,null,null,null,null,null,null,null,null,null,null,null,null,null,null,null,null,null,{"$f":"IF(AND(DG175>0.5,DG175<63000),58,IF(AND(DG175>=63000,DG175<73000),68,IF(AND(DG175>=73000,DG175<83000),78,IF(AND(DG175>=83000,DG175<93000),88,IF(AND(DG175>=93000,DG175<101000),98,IF(AND(DG175>=101000,DG175<107000),104,IF(AND(DG175>=107000,DG175<114000),110,IF(AND(DG175>=114000,DG175<122000),118,IF(AND(DG175>=122000,DG175<130000),126,IF(AND(DG175>=130000,DG175<138000),134,IF(AND(DG175>=138000,DG175<146000),142,IF(AND(DG175>=146000,DG175<155000),150,IF(AND(DG175>=155000,DG175<165000),160,IF(AND(DG175>=165000,DG175<175000),170,IF(AND(DG175>=175000,DG175<185000),180,IF(AND(DG175>=185000,DG175<195000),190,IF(AND(DG175>=195000,DG175<210000),200,IF(AND(DG175>=210000,DG175<230000),220,IF(AND(DG175>=230000,DG175<250000),240,IF(AND(DG175>=250000,DG175<270000),260,IF(AND(DG175>=270000,DG175<290000),280,IF(AND(DG175>=290000,DG175<310000),300,IF(AND(DG175>=310000,DG175<330000),320,IF(AND(DG175>=330000,DG175<350000),340,IF(AND(DG175>=350000,DG175<370000),360,IF(AND(DG175>=370000,DG175<395000),380,IF(AND(DG175>=395000,DG175<425000),410,IF(AND(DG175>=425000,DG175<455000),440,IF(AND(DG175>=455000,DG175<485000),470,IF(AND(DG175>=485000,DG175<515000),500,IF(AND(DG175>=515000,DG175<545000),530,IF(AND(DG175>=545000,DG175<575000),560,IF(AND(DG175>=575000,DG175<605000),590,IF(AND(DG175>=605000,DG175<635000),620,IF(AND(DG175>=635000,DG175<665000),650,IF(AND(DG175>=665000,DG175<695000),680,IF(AND(DG175>=695000,DG175<730000),710,IF(AND(DG175>=730000,DG175<770000),750,IF(AND(DG175>=770000,DG175<810000),790,IF(AND(DG175>=810000,DG175<855000),830,IF(AND(DG175>=855000,DG175<905000),880,IF(AND(DG175>=905000,DG175<955000),930,IF(AND(DG175>=955000,DG175<1005000),980,IF(AND(DG175>=1005000,DG175<1055000),1030,IF(AND(DG175>=1055000,DG175<1115000),1090,IF(AND(DG175>=1115000,DG175<1175000),1150,IF(AND(DG175>=1175000,DG175<1235000),1210,IF(AND(DG175>=1235000,DG175<1295000),1270,IF(AND(DG175>=1295000,DG175<1355000),1330,IF(AND(DG175>=1355000,DG175<1000000000),1390,\"\"))))))))))))))))))))))))))))))))))))))))))))))))))","v":""},null,null,null,null,null,null,null,null,null,null,null,null,null,null,null,null,null,null,null,null,null,null,{"$f":"IF(BV157=\"\",BM171,BM177)","v":0}]
[]
[]
[null,null,null,null,null,"月",null,null,null,null,null,null,null,null,null,"日",null,null,null,null,null,null,null,null,null,null,null,null,null,null,"円",null,null,null,null,null,null,null,null,null,null,null,null,null,null,"円",null,null,null,null,null,null,null,null,null,null,null,null,null,null,null,null,"円",null,null,null,null,null,null,null,null,null,null,null,null,null,null,null,null,null,null,null,null,"円",null,null,null,null,null,null,null,null,null,null,null,null,null,null,null,null,null,null,null,null,null,null,"千円"]
[]
[]
[]
[null,null,null,null,null,null,null,null,null,null,null,null,null,null,null,null,null,null,null,null,null,null,null,null,null,null,null,null,null,null,null,null,null,null,null,null,null,null,null,null,null,null,null,null,null,null,null,null,null,null,null,null,null,null,null,null,null,null,null,null,null,null,null,null,null,null,null,null,null,null,null,null,null,null,null,null,null,null,null,9,null,null,null,null,null,null,null," 1. 二以上勤務",null,null,null,null,null,null,null,null,null,null,null," 2.月額変更予定"]
[]
[null,null,null,null,null,null,null,null,null,null,null,null,null,null,null,null,null,null,null,null,null,null,null,null,null,null,null,null,null,null,null,null,null,null,null,null,null,null,null,null,null,null,null,null,null,null,null,null,null,null,null,null,null,null,null,null,null,null,null,null,null,null,null,null,null,null,null,null,null,null,null,null,null,null,null,null,null,"年",null,null,null,null,null,"月"]
[]
[null,null,null,null,null,null,null,null,null,null,null,null,null,null,null,null,null,null,null,null,null,null,null,null,null,null,null,null,null,null,null,null,null,null,null,null,null,null,null,null,null,null,null,null,null,null,null,null,null,null,null,null,null,null,null,null,null,null,null,null,null,null,null,null,null,null,null,null,null,null,null,null,null,null,null,null,null,null,null,null,null,null,null,null,null,null,null," 3.途中入社",null,null,null,null,null,null,null,null,null,null,null,"4.病休・育休・休職等"]
[null,null,null,null,null,null,null,null,null,null,null,null,null,null,null,null,null,null,null,null,null,null,null,null,null,null,null,null,null,null,null,null,null,null,null,null,null,null,null,null,null,null,null,null,null,null,null,"⑦昇(降)給",null,null,null,null,null,null,null,null,null,null,"1．昇給",null,null,null,null,null,"⑧遡及支払額",null,null,null,null,null,null,null,null,null,null,null,null,null,null,null,null,null,null,null,null,null,null,null,null,null,null,null,null,null,null,null,null,null,null,null,null,null,null,null,null,null,null,null,null,null,1,2,1,2,1,2,3,4,5,6,7,8]
[null,null,null,null,null,null,null,null,null,null,null,null,null,null,null,null,null,null,null,null,null,null,null,null,null,null,null,null,null,null,null,null,null,null,null,null,null,null,null,null,null,null,null,null,null,null,null,null,null,null,null,null,null,null,null,null,null,null,null,null,null,null,null,null,null,null,null,null,null,null,null,null,null,null,null,null,null,null,null,null,null,null,null,null,null,null,null,null,null,null,null,null,null,null,null,null,null,null,null,null,null,null,null,null,null,null,null,null,null,null,false,false,false,false,false,false,false,false,false,false,false,false]
[null,null,null,null,null,null,null,null,null,null,null,null,null,null,null,null,null,null,null,null,null,null,null,null,null,null,null,null,null,null,null,null,null,null,null,null,null,null,null,null,null,null,null,null,null,null,null,null,null,null,null,null,null,null,"月"]
[null,null,null,null,null,null,null,null,null,null,null,null,null,null,null,null,null,null,null,null,null,null,null,null,null,null,null,null,null,"千円",null,null,null,null,null,null,null,null,"年",null,null,null,null,null,null,"月",null,null,null,null,null,null,null,null,null,null,null,null,"2．降給",null,null,null,null,null,null,null,null,null,null,null,null,"月",null,null,null,null,null,null,null,null,null,null,null,"円",null,null,null," 5. 短時間労働者（特定適用事業所等）"]
[]
[]
[null,null,"⑨支給月",null,null,null,null,"⑩日数",null,null,null,null,null,null,null,null,null,"⑪通貨",null,null,null,null,null,null,null,null,null,null,null,null,null,null,"⑫現物",null,null,null,null,null,null,null,null,null,null,null,null,null,null,"⑬合計(⑪＋⑫)",null,null,null,null,null,null,null,null,null,null,null,null,null,null,null,null,"⑭総計"]
[null,null,null,null,null,null,null,null,null,null,null,null,null,null,null,null,null,null,null,null,null,null,null,null,null,null,null,null,null,null,null,null,null,null,null,null,null,null,null,null,null,null,null,null,null,null,null,null,null,null,null,null,null,null,null,null,null,null,null,null,null,null,null,null,null,null,null,null,null,null,null,null,null,null,null,null,null,null,null,null,null,null,null,null,null,null,null," 6.パート",null,null,null,null,null,null,null,null,null,null,null,"7.年間平均"]
[null,null,4,null,null,null,null,null,null,null,null,null,null,null,null,null,null,null,null,null,null,null,null,null,null,null,null,null,null,null,null,null,null,null,null,null,null,null,null,null,null,null,null,null,null,null,null,{"$f":"R195+AG195","v":0},null,null,null,null,null,null,null,null,null,null,null,null,null,null,null,null,{"$f":"AV195+AV199+AV205","v":0}]
[null,null,null,null,null,"月",null,null,null,null,null,null,null,null,null,"日",null,null,null,null,null,null,null,null,null,null,null,null,null,null,"円",null,null,null,null,null,null,null,null,null,null,null,null,null,null,"円",null,null,null,null,null,null,null,null,null,null,null,null,null,null,null,null,"円",null,null,null,null,null,null,null,null,null,null,null,null,null,null,null,null,null,null,null,null,"円"]
[]
[null,null,null,null,null,null,null,null,null,null,null,null,null,null,null,null,null,null,null,null,null,null,null,null,null,null,null,null,null,null,null,null,null,null,null,null,null,null,null,null,null,null,null,null,null,null,null,null,null,null,null,null,null,null,null,null,null,null,null,null,null,null,null,null,null,null,null,null,null,null,null,null,null,null,null,null,null,null,null,null,null,null,null,null,null,null,null," 8.その他"]
[null,null,5,null,null,null,null,null,null,null,null,null,null,null,null,null,null,null,null,null,null,null,null,null,null,null,null,null,null,null,null,null,null,null,null,null,null,null,null,null,null,null,null,null,null,null,null,{"$f":"R199+AG199","v":0},null,null,null,null,null,null,null,null,null,null,null,null,null,null,null,null,"⑮平均額"]
[]
[null,null,null,null,null,null,null,null,null,null,null,null,null,null,null,null,null,null,null,null,null,null,null,null,null,null,null,null,null,null,null,null,null,null,null,null,null,null,null,null,null,null,null,null,null,null,null,null,null,null,null,null,null,null,null,null,null,null,null,null,null,null,null,null,{"$f":"ROUNDDOWN(BM195/3,0)","v":0}]
[null,null,null,null,null,"月",null,null,null,null,null,null,null,null,null,"日",null,null,null,null,null,null,null,null,null,null,null,null,null,null,"円",null,null,null,null,null,null,null,null,null,null,null,null,null,null,"円",null,null,null,null,null,null,null,null,null,null,null,null,null,null,null,null,"円",null,null,null,null,null,null,null,null,null,null,null,null,null,null,null,null,null,null,null,null,"円",null,null,"(",null,null,null,null,null,null,null,null,null,null,null,null,null,null,null,null,null,null,null,null,")"]
[]
[]
[null,null,6,null,null,null,null,null,null,null,null,null,null,null,null,null,null,null,null,null,null,null,null,null,null,null,null,null,null,null,null,null,null,null,null,null,null,null,null,null,null,null,null,null,null,null,null,{"$f":"R205+AG205","v":0},null,null,null,null,null,null,null,null,null,null,null,null,null,null,null,null,"⑯修正平均額",null,null,null,null,null,null,null,null,null,null,null,null,null,null,null,null,null,null,null,null,null,null,{"$f":"IF(AND(DG205>0.5,DG205<63000),58,IF(AND(DG205>=63000,DG205<73000),68,IF(AND(DG205>=73000,DG205<83000),78,IF(AND(DG205>=83000,DG205<93000),88,IF(AND(DG205>=93000,DG205<101000),98,IF(AND(DG205>=101000,DG205<107000),104,IF(AND(DG205>=107000,DG205<114000),110,IF(AND(DG205>=114000,DG205<122000),118,IF(AND(DG205>=122000,DG205<130000),126,IF(AND(DG205>=130000,DG205<138000),134,IF(AND(DG205>=138000,DG205<146000),142,IF(AND(DG205>=146000,DG205<155000),150,IF(AND(DG205>=155000,DG205<165000),160,IF(AND(DG205>=165000,DG205<175000),170,IF(AND(DG205>=175000,DG205<185000),180,IF(AND(DG205>=185000,DG205<195000),190,IF(AND(DG205>=195000,DG205<210000),200,IF(AND(DG205>=210000,DG205<230000),220,IF(AND(DG205>=230000,DG205<250000),240,IF(AND(DG205>=250000,DG205<270000),260,IF(AND(DG205>=270000,DG205<290000),280,IF(AND(DG205>=290000,DG205<310000),300,IF(AND(DG205>=310000,DG205<330000),320,IF(AND(DG205>=330000,DG205<350000),340,IF(AND(DG205>=350000,DG205<370000),360,IF(AND(DG205>=370000,DG205<395000),380,IF(AND(DG205>=395000,DG205<425000),410,IF(AND(DG205>=425000,DG205<455000),440,IF(AND(DG205>=455000,DG205<485000),470,IF(AND(DG205>=485000,DG205<515000),500,IF(AND(DG205>=515000,DG205<545000),530,IF(AND(DG205>=545000,DG205<575000),560,IF(AND(DG205>=575000,DG205<605000),590,IF(AND(DG205>=605000,DG205<635000),620,IF(AND(DG205>=635000,DG205<665000),650,IF(AND(DG205>=665000,DG205<695000),680,IF(AND(DG205>=695000,DG205<730000),710,IF(AND(DG205>=730000,DG205<770000),750,IF(AND(DG205>=770000,DG205<810000),790,IF(AND(DG205>=810000,DG205<855000),830,IF(AND(DG205>=855000,DG205<905000),880,IF(AND(DG205>=905000,DG205<955000),930,IF(AND(DG205>=955000,DG205<1005000),980,IF(AND(DG205>=1005000,DG205<1055000),1030,IF(AND(DG205>=1055000,DG205<1115000),1090,IF(AND(DG205>=1115000,DG205<1175000),1150,IF(AND(DG205>=1175000,DG205<1235000),1210,IF(AND(DG205>=1235000,DG205<1295000),1270,IF(AND(DG205>=1295000,DG205<1355000),1330,IF(AND(DG205>=1355000,DG205<1000000000),1390,\"\"))))))))))))))))))))))))))))))))))))))))))))))))))","v":""},null,null,null,null,null,null,null,null,null,null,null,null,null,null,null,null,null,null,null,null,null,null,{"$f":"IF(BV187=\"\",BM201,BM207)","v":0}]
[]
[]
[null,null,null,null,null,"月",null,null,null,null,null,null,null,null,null,"日",null,null,null,null,null,null,null,null,null,null,null,null,null,null,"円",null,null,null,null,null,null,null,null,null,null,null,null,null,null,"円",null,null,null,null,null,null,null,null,null,null,null,null,null,null,null,null,"円",null,null,null,null,null,null,null,null,null,null,null,null,null,null,null,null,null,null,null,null,"円",null,null,null,null,null,null,null,null,null,null,null,null,null,null,null,null,null,null,null,null,null,null,"千円"]
[]
[]
[]
[]
[null,"※　⑨支給月とは、給与の対象となった計算月ではなく実際に給与の支払いを行った月となります。"]
[null,null,null,null,null,null,null,null,null,null,null,null,null,null,null,null,null,null,null,null,null,null,null,null,null,null,null,null,null,null,null,null,null,null,null,null,null,null,null,null,null,null,null,null,null,null,null,null,null,null,null,null,null,null,null,null,null,null,null,null,null,null,null,null,null,null,null,null,null,null,null,null,null,null,null,null,null,null,null,null,null,null,null,null,null,null,null,null,null,null,null,null,"　　受　付　印"]
[null,"　　 "]

{"sheet":"算定基礎届・副","index":2,"n_rows":236,"n_cols":108,"rows_kept":236,"cut":false,"hidden":false,"merged":[[54,85,59,108],[6,2,22,8],[6,9,7,49],[8,9,10,11],[11,9,22,57],[23,2,33,8],[23,9,33,57],[34,2,40,8],[34,9,41,57],[56,47,59,63],[56,64,57,84],[58,64,59,84],[38,103,44,108],[41,2,44,8],[31,60,35,83],[36,60,37,93],[47,47,51,71],[47,85,53,108],[10,60,19,74],[6,60,9,74],[8,12,10,25],[181,2,185,16],[151,2,155,16],[81,86,83,87],[81,88,83,106],[81,107,83,108],[111,83,113,84],[117,106,119,108],[120,88,120,105],[114,85,119,86],[123,83,125,84],[147,106,149,108],[144,85,149,86],[156,64,157,71],[144,87,149,105],[105,45,107,46],[134,47,137,61],[134,64,137,82],[135,5,137,6],[156,56,158,57],[153,77,155,78],[151,72,155,76],[151,79,155,82],[151,47,155,71],[151,17,155,46],[61,2,65,16],[91,2,95,16],[121,2,125,16],[135,83,137,84],[129,83,131,84],[117,83,119,84],[141,83,143,84],[147,30,149,31],[147,45,149,46],[147,62,149,63],[147,83,149,84],[146,64,149,82],[123,77,125,78],[121,79,125,82],[129,38,131,39],[129,45,131,46],[129,71,131,72],[126,64,127,71],[128,47,131,53],[128,54,131,55],[135,62,137,63],[126,73,131,82],[128,64,131,70],[121,47,125,71],[121,72,125,76],[126,2,131,28],[134,32,137,44],[270,1,270,13],[270,15,270,108],[265,1,265,13],[265,15,265,108],[266,1,266,13],[266,15,266,108],[267,1,267,13],[267,15,267,108],[268,1,268,13],[268,15,268,108],[269,1,269,13],[269,15,269,108],[262,1,262,13],[262,15,262,108],[263,1,263,13],[263,15,263,108],[264,1,264,13],[132,2,133,6],[171,107,173,108],[264,15,264,108],[258,1,258,13],[258,15,258,108],[259,15,259,108],[260,1,260,13],[260,15,260,108],[261,1,261,13],[261,15,261,108],[274,1,274,13],[274,15,274,108],[275,1,275,13],[275,15,275,108],[276,1,276,13],[276,15,276,108],[271,1,271,13],[271,15,271,108],[272,1,272,13],[272,15,272,108],[273,1,273,13],[273,15,273,108],[291,1,291,108],[282,1,282,108],[283,1,283,108],[284,1,284,5],[285,1,285,108],[286,1,286,108],[287,1,287,108],[277,1,277,13],[277,15,277,108],[278,1,278,6],[279,1,279,108],[280,1,280,108],[281,1,281,108],[288,1,288,108],[289,1,289,108],[290,1,290,108],[255,1,255,13],[255,15,255,108],[256,1,256,13],[256,15,256,108],[257,1,257,13],[257,15,257,108],[252,1,252,13],[252,15,252,108],[253,1,253,13],[253,15,253,108],[254,1,254,13],[254,15,254,108],[249,1,249,13],[249,15,249,108],[250,1,250,13],[250,15,250,108],[251,1,251,13],[251,15,251,108],[246,1,246,13],[246,67,246,68],[246,69,247,79],[247,1,247,13],[248,1,248,13],[248,15,248,108],[242,43,243,44],[242,45,243,46],[243,1,243,13],[244,1,244,13],[244,15,244,108],[245,1,245,13],[242,1,242,13],[242,24,243,30],[242,35,243,36],[242,37,243,38],[242,39,243,40],[242,41,243,42],[235,2,235,101],[236,1,236,108],[237,1,237,108],[240,1,240,13],[240,15,240,108],[241,1,241,13],[241,15,241,108],[229,2,229,101],[230,2,230,101],[231,2,231,101],[232,2,232,101],[233,2,233,101],[234,2,234,101],[223,2,223,101],[224,2,224,102],[225,2,225,101],[226,2,226,101],[227,2,227,101],[228,2,228,101],[207,106,209,108],[212,1,213,40],[212,71,213,104],[214,26,215,33],[216,26,216,33],[222,2,222,101],[204,85,209,86],[206,64,209,82],[207,5,209,6],[207,15,209,16],[207,30,209,31],[207,45,209,46],[207,62,209,63],[207,83,209,84],[204,2,209,4],[204,7,209,14],[204,87,209,105],[198,2,203,4],[198,7,203,14],[198,17,203,29],[198,32,203,44],[198,47,203,61],[198,64,199,69],[204,17,209,29],[204,32,209,44],[204,47,209,61],[200,64,203,82],[201,5,203,6],[201,15,203,16],[201,30,203,31],[201,45,203,46],[201,62,203,63],[194,17,197,29],[194,32,197,44],[194,47,197,61],[194,64,197,82],[195,5,197,6],[195,15,197,16],[195,30,197,31],[201,83,203,84],[204,64,205,71],[192,32,193,37],[192,2,193,6],[192,7,193,12],[192,17,193,22],[194,2,197,4],[194,7,197,14],[189,71,191,72],[186,73,191,82],[189,83,191,84],[195,83,197,84],[186,64,187,71],[195,45,197,46],[195,62,197,63],[186,56,188,57],[186,58,188,63],[189,56,191,57],[189,58,191,63],[188,64,191,70],[192,47,193,55],[192,64,193,69],[186,33,191,37],[186,40,191,44],[186,47,187,52],[188,47,191,53],[188,54,191,55],[189,29,191,31],[189,38,191,39],[189,45,191,46],[186,2,191,28],[177,106,179,108],[181,17,185,46],[181,72,185,76],[181,79,185,82],[174,85,179,86],[176,64,179,82],[183,77,185,78],[183,83,185,84],[181,47,185,71],[174,17,179,29],[174,32,179,44],[174,47,179,61],[174,87,179,105],[177,15,179,16],[177,30,179,31],[177,45,179,46],[177,62,179,63],[177,83,179,84],[174,64,175,71],[165,83,167,84],[168,2,173,4],[168,7,173,14],[168,17,173,29],[168,32,173,44],[168,47,173,61],[168,64,169,69],[164,2,167,4],[164,7,167,14],[164,17,167,29],[164,32,167,44],[164,47,167,61],[164,64,167,82],[165,5,167,6],[165,15,167,16],[165,30,167,31],[171,83,173,84],[165,45,167,46],[165,62,167,63],[159,71,161,72],[156,2,161,28],[159,56,161,57],[174,2,179,4],[174,7,179,14],[177,5,179,6],[170,64,173,82],[171,5,173,6],[171,15,173,16],[171,30,173,31],[171,45,173,46],[171,62,173,63],[162,64,163,69],[140,64,143,82],[135,45,137,46],[159,83,161,84],[153,83,155,84],[144,2,149,4],[144,7,149,14],[158,47,161,53],[158,54,161,55],[158,64,161,70],[144,17,149,29],[144,32,149,44],[144,47,149,61],[144,64,145,71],[156,58,158,63],[147,5,149,6],[147,15,149,16],[156,33,161,37],[156,40,161,44],[156,47,157,52],[156,73,161,82],[159,29,161,31],[159,38,161,39],[159,45,161,46],[138,2,143,4],[138,7,143,14],[138,17,143,29],[138,32,143,44],[138,47,143,61],[132,47,133,55],[159,58,161,63],[162,2,163,6],[162,7,163,12],[162,17,163,22],[162,32,163,37],[162,47,163,55],[132,64,133,69],[126,56,128,57],[126,58,128,63],[129,56,131,57],[138,64,139,69],[135,15,137,16],[135,30,137,31],[141,5,143,6],[141,15,143,16],[141,30,143,31],[141,45,143,46],[141,62,143,63],[129,58,131,63],[126,33,131,37],[126,40,131,44],[126,47,127,52],[114,2,119,4],[114,7,119,14],[114,17,119,29],[114,32,119,44],[114,47,119,61],[134,2,137,4],[134,7,137,14],[134,17,137,29],[132,7,133,12],[132,17,133,22],[132,32,133,37],[129,29,131,31],[104,64,107,82],[105,5,107,6],[105,15,107,16],[105,30,107,31],[99,83,101,84],[114,64,115,71],[116,64,119,82],[121,17,125,46],[108,2,113,4],[108,7,113,14],[108,17,113,29],[108,32,113,44],[108,47,113,61],[108,64,109,69],[111,15,113,16],[111,30,113,31],[111,45,113,46],[111,62,113,63],[110,64,113,82],[117,5,119,6],[117,15,119,16],[117,30,119,31],[117,45,119,46],[117,62,119,63],[96,58,98,63],[99,56,101,57],[99,58,101,63],[96,33,101,37],[96,40,101,44],[104,2,107,4],[104,7,107,14],[104,17,107,29],[104,32,107,44],[104,47,107,61],[111,5,113,6],[99,29,101,31],[99,38,101,39],[99,45,101,46],[99,71,101,72],[91,17,95,46],[91,72,95,76],[96,2,101,28],[102,47,103,55],[102,64,103,69],[96,64,97,71],[102,2,103,6],[102,7,103,12],[102,17,103,22],[102,32,103,37],[105,62,107,63],[96,73,101,82],[98,47,101,53],[98,54,101,55],[98,64,101,70],[96,47,97,52],[91,79,95,82],[93,77,95,78],[96,56,98,57],[84,2,89,4],[84,7,89,14],[84,17,89,29],[84,32,89,44],[84,47,89,61],[84,64,85,71],[84,85,89,86],[86,64,89,82],[87,5,89,6],[87,15,89,16],[87,30,89,31],[87,45,89,46],[87,62,89,63],[87,83,89,84],[78,2,83,4],[78,7,83,14],[78,17,83,29],[78,32,83,44],[78,47,83,61],[74,2,77,4],[74,7,77,14],[74,17,77,29],[74,32,77,44],[74,47,77,61],[75,5,77,6],[75,15,77,16],[75,30,77,31],[81,5,83,6],[81,15,83,16],[81,30,83,31],[81,45,83,46],[163,99,166,108],[167,87,170,96],[47,72,51,84],[47,2,51,16],[61,99,64,108],[72,2,73,6],[72,7,73,12],[72,17,73,22],[72,32,73,37],[72,47,73,55],[66,2,71,28],[69,45,71,46],[66,33,71,37],[66,40,71,44],[69,29,71,31],[69,38,71,39],[72,64,73,69],[63,77,65,78],[63,83,65,84],[61,47,65,71],[69,71,71,72],[69,83,71,84],[66,47,67,52],[66,64,67,71],[61,0,210,0],[61,17,65,46],[61,72,65,76],[61,79,65,82],[47,0,60,0],[56,2,59,6],[56,7,59,16],[56,17,59,31],[56,32,59,46],[52,2,53,31],[52,32,53,46],[52,47,53,63],[52,64,53,84],[54,2,55,6],[54,7,55,16],[54,17,55,63],[54,64,55,84],[47,17,51,46],[66,73,71,82],[68,47,71,53],[68,54,71,55],[66,56,68,57],[75,45,77,46],[75,62,77,63],[103,87,106,96],[103,99,106,108],[107,87,110,96],[107,99,110,108],[111,88,113,106],[111,107,113,108],[95,87,98,96],[95,99,98,108],[42,12,44,39],[60,88,60,105],[61,87,64,96],[75,83,77,84],[78,64,79,69],[74,64,77,82],[68,64,71,70],[66,58,68,63],[69,58,71,63],[69,56,71,57],[93,83,95,84],[91,47,95,71],[80,64,83,82],[81,62,83,63],[81,83,83,84],[105,83,107,84],[1,20,2,31],[1,32,2,85],[4,2,4,7],[4,8,4,12],[4,13,4,15],[4,16,4,18],[4,19,4,21],[4,22,4,24],[4,25,4,27],[201,107,203,108],[141,86,143,87],[141,88,143,106],[141,107,143,108],[171,86,173,87],[171,88,173,106],[201,86,203,87],[201,88,203,106],[133,87,136,96],[133,99,136,108],[137,87,140,96],[137,99,140,108],[151,87,154,96],[151,99,154,108],[155,87,158,96],[155,99,158,108],[159,87,162,108],[193,87,196,96],[193,99,196,108],[197,87,200,96],[197,99,200,108],[163,87,166,96],[167,99,170,108],[181,87,184,96],[181,99,184,108],[185,87,188,96],[185,99,188,108],[189,87,192,108],[114,87,119,105],[129,87,132,108],[65,87,68,96],[65,99,68,108],[69,87,72,108],[73,87,76,96],[73,99,76,108],[77,87,80,96],[77,99,80,108],[91,87,94,96],[91,99,94,108],[87,106,89,108],[90,88,90,105],[84,87,89,105],[121,87,124,96],[121,99,124,108],[125,87,128,96],[125,99,128,108],[111,86,113,87],[99,87,102,108]]}
[]
[null,null,null,null,null,null,null,null,null,null,null,null,null,null,null,null,null,null,null,null,"健康保険",null,null,null,null,null,null,null,null,null,null,null,"被保険者標準報酬改定通知書"]
[]
[]
[null,null,null,null,null,null,null,null,"令和",null,null,null,null,{"$f":"IF((算定基礎届・正!N5)=\"\",\"\",算定基礎届・正!N5)","v":""},null,null,"年",null,null,{"$f":"IF((算定基礎届・正!T5)=\"\",\"\",算定基礎届・正!T5)","v":""},null,null,"月",null,null,{"$f":"IF((算定基礎届・正!Z5)=\"\",\"\",算定基礎届・正!Z5)","v":""},null,null,"日提出"]
[]
[null,null,"事業所\n所在地",null,null,null,null,null,null,"届書記入の個人番号に誤りがないことを確認しました。",null,null,null,null,null,null,null,null,null,null,null,null,null,null,null,null,null,null,null,null,null,null,null,null,null,null,null,null,null,null,null,null,null,null,null,null,null,null,null,null,null,null,null,null,null,null,null,null,null,null,"健康保険の記号"]
[]
[null,null,null,null,null,null,null,null,null,"〒",null,null,{"$f":"IF((算定基礎届・正!M9)=\"\",\"\",算定基礎届・正!M9)","v":""}]
[]
[null,null,null,null,null,null,null,null,null,null,null,null,null,null,null,null,null,null,null,null,null,null,null,null,null,null,null,null,null,null,null,null,null,null,null,null,null,null,null,null,null,null,null,null,null,null,null,null,null,null,null,null,null,null,null,null,null,null,null,null,{"$f":"IF((算定基礎届・正!BI11)=\"\",\"\",算定基礎届・正!BI11)","v":""}]
[null,null,null,null,null,null,null,null,null,{"$f":"IF((算定基礎届・正!J12)=\"\",\"\",算定基礎届・正!J12)","v":""}]
[]
[]
[]
[]
[]
[]
[]
[]
[]
[]
[]
[null,null,"事業所\n名　称",null,null,null,null,null,null,{"$f":"IF((算定基礎届・正!J24)=\"\",\"\",算定基礎届・正!J24)","v":""}]
[]
[]
[]
[]
[]
[]
[]
[]
[]
[]
[null,null,"事業主\n氏　名",null,null,null,null,null,null,{"$f":"IF((算定基礎届・正!J35)=\"\",\"\",算定基礎届・正!J35)","v":""}]
[]
[]
[]
[]
[]
[]
[null,null,"電話番号"]
[null,null,null,null,null,null,null,null,null,null,null,null,{"$f":"IF((算定基礎届・正!M43)=\"\",\"\",算定基礎届・正!M43)","v":""}]
[]
[]
[]
[]
[null,null,"①健康保険被保険者等番号",null,null,null,null,null,null,null,null,null,null,null,null,null,null,"②　被保険者氏名",null,null,null,null,null,null,null,null,null,null,null,null,null,null,null,null,null,null,null,null,null,null,null,null,null,null,null,null,null,"③　生年月日",null,null,null,null,null,null,null,null,null,null,null,null,null,null,null,null,null,null,null,null,null,null,null,null,"④　適用年月",null,null,null,null,null,null,null,null,null,null,null,null,"⑰　備考"]
[]
[]
[]
[]
[null,null,"⑤　従前の標準報酬月額",null,null,null,null,null,null,null,null,null,null,null,null,null,null,null,null,null,null,null,null,null,null,null,null,null,null,null,null,null,"⑥　従前改定月",null,null,null,null,null,null,null,null,null,null,null,null,null,null,"⑦　昇(降)給",null,null,null,null,null,null,null,null,null,null,null,null,null,null,null,null,"⑧　遡及支払額"]
[]
[null,null,"⑨",null,null,null,null,"⑩",null,null,null,null,null,null,null,null,null,"報酬月額",null,null,null,null,null,null,null,null,null,null,null,null,null,null,null,null,null,null,null,null,null,null,null,null,null,null,null,null,null,null,null,null,null,null,null,null,null,null,null,null,null,null,null,null,null,null,"⑭　総計（一定の基礎日数以上の月のみ）",null,null,null,null,null,null,null,null,null,null,null,null,null,null,null,null,null,null,null,null,"⑱決定後の標準報酬月額"]
[]
[null,null,"給与\n支給月",null,null,null,null,"給与計算の\n基礎日数",null,null,null,null,null,null,null,null,null,"⑪　通貨によるものの額",null,null,null,null,null,null,null,null,null,null,null,null,null,null,"⑫　現物によるものの額",null,null,null,null,null,null,null,null,null,null,null,null,null,null,"⑬　合計（⑪+⑫）",null,null,null,null,null,null,null,null,null,null,null,null,null,null,null,null,"⑮　平均額"]
[]
[null,null,null,null,null,null,null,null,null,null,null,null,null,null,null,null,null,null,null,null,null,null,null,null,null,null,null,null,null,null,null,null,null,null,null,null,null,null,null,null,null,null,null,null,null,null,null,null,null,null,null,null,null,null,null,null,null,null,null,null,null,null,null,null,"⑯　修正平均額"]
[]
[]
[null,null,{"$f":"IF((算定基礎届・正!C62)=\"\",\"\",算定基礎届・正!C62)","v":""},null,null,null,null,null,null,null,null,null,null,null,null,null,null,{"$f":"IF((算定基礎届・正!R62)=\"\",\"\",算定基礎届・正!R62)","v":""},null,null,null,null,null,null,null,null,null,null,null,null,null,null,null,null,null,null,null,null,null,null,null,null,null,null,null,null,null,{"$f":"IF((算定基礎届・正!AV62)=\"\",\"\",算定基礎届・正!AV62)","v":""},null,null,null,null,null,null,null,null,null,null,null,null,null,null,null,null,null,null,null,null,null,null,null,null,{"$f":"IF((算定基礎届・正!BU62)=\"\",\"\",算定基礎届・正!BU62)","v":""},null,null,null,null,null,null,{"$f":"IF((算定基礎届・正!CB62)=\"\",\"\",算定基礎届・正!CB62)","v":9},null,null,null,null,null,null,null," 1. 二以上勤務",null,null,null,null,null,null,null,null,null,null,null," 2.月額変更予定"]
[]
[null,null,null,null,null,null,null,null,null,null,null,null,null,null,null,null,null,null,null,null,null,null,null,null,null,null,null,null,null,null,null,null,null,null,null,null,null,null,null,null,null,null,null,null,null,null,null,null,null,null,null,null,null,null,null,null,null,null,null,null,null,null,null,null,null,null,null,null,null,null,null,null,null,null,null,null,null,"年",null,null,null,null,null,"月"]
[]
[null,null,null,null,null,null,null,null,null,null,null,null,null,null,null,null,null,null,null,null,null,null,null,null,null,null,null,null,null,null,null,null,null,null,null,null,null,null,null,null,null,null,null,null,null,null,null,null,null,null,null,null,null,null,null,null,null,null,null,null,null,null,null,null,null,null,null,null,null,null,null,null,null,null,null,null,null,null,null,null,null,null,null,null,null,null,null," 3.途中入社",null,null,null,null,null,null,null,null,null,null,null,"4.病休・育休・休職等"]
[null,null,{"$f":"IF((算定基礎届・正!C67)=\"\",\"\",算定基礎届・正!C67)","v":""},null,null,null,null,null,null,null,null,null,null,null,null,null,null,null,null,null,null,null,null,null,null,null,null,null,null,null,null,null,null,{"$f":"IF((算定基礎届・正!AH67)=\"\",\"\",算定基礎届・正!AH67)","v":""},null,null,null,null,null,null,{"$f":"IF((算定基礎届・正!AO67)=\"\",\"\",算定基礎届・正!AO67)","v":""},null,null,null,null,null,null,"⑦昇(降)給",null,null,null,null,null,null,null,null,null,null,"1．昇給",null,null,null,null,null,"⑧遡及支払額",null,null,null,null,null,null,null,null,{"$f":"IF((算定基礎届・正!BV67)=\"\",\"\",算定基礎届・正!BV67)","v":""}]
[]
[null,null,null,null,null,null,null,null,null,null,null,null,null,null,null,null,null,null,null,null,null,null,null,null,null,null,null,null,null,null,null,null,null,null,null,null,null,null,null,null,null,null,null,null,null,null,null,{"$f":"IF((算定基礎届・正!AV69)=\"\",\"\",算定基礎届・正!AV69)","v":""},null,null,null,null,null,null,"月",null,null,null,null,null,null,null,null,null,{"$f":"IF((算定基礎届・正!BM69)=\"\",\"\",算定基礎届・正!BM69)","v":""}]
[null,null,null,null,null,null,null,null,null,null,null,null,null,null,null,null,null,null,null,null,null,null,null,null,null,null,null,null,null,"千円",null,null,null,null,null,null,null,null,"年",null,null,null,null,null,null,"月",null,null,null,null,null,null,null,null,null,null,null,null,"2．降給",null,null,null,null,null,null,null,null,null,null,null,null,"月",null,null,null,null,null,null,null,null,null,null,null,"円",null,null,null," 5. 短時間労働者（特定適用事業所等）"]
[]
[]
[null,null,"⑨支給月",null,null,null,null,"⑩日数",null,null,null,null,null,null,null,null,null,"⑪通貨",null,null,null,null,null,null,null,null,null,null,null,null,null,null,"⑫現物",null,null,null,null,null,null,null,null,null,null,null,null,null,null,"⑬合計(⑪＋⑫)",null,null,null,null,null,null,null,null,null,null,null,null,null,null,null,null,"⑭総計"]
[null,null,null,null,null,null,null,null,null,null,null,null,null,null,null,null,null,null,null,null,null,null,null,null,null,null,null,null,null,null,null,null,null,null,null,null,null,null,null,null,null,null,null,null,null,null,null,null,null,null,null,null,null,null,null,null,null,null,null,null,null,null,null,null,null,null,null,null,null,null,null,null,null,null,null,null,null,null,null,null,null,null,null,null,null,null,null," 6.パート",null,null,null,null,null,null,null,null,null,null,null,"7.年間平均"]
[null,null,{"$f":"IF((算定基礎届・正!C75)=\"\",\"\",算定基礎届・正!C75)","v":4},null,null,null,null,{"$f":"IF((算定基礎届・正!H75)=\"\",\"\",算定基礎届・正!H75)","v":""},null,null,null,null,null,null,null,null,null,{"$f":"IF((算定基礎届・正!R75)=\"\",\"\",算定基礎届・正!R75)","v":""},null,null,null,null,null,null,null,null,null,null,null,null,null,null,{"$f":"IF((算定基礎届・正!AG75)=\"\",\"\",算定基礎届・正!AG75)","v":""},null,null,null,null,null,null,null,null,null,null,null,null,null,null,{"$f":"IF((算定基礎届・正!AV75)=0,\"\",算定基礎届・正!AV75)","v":""},null,null,null,null,null,null,null,null,null,null,null,null,null,null,null,null,{"$f":"IF((算定基礎届・正!BM75)=0,\"\",算定基礎届・正!BM75)","v":""}]
[null,null,null,null,null,"月",null,null,null,null,null,null,null,null,null,"日",null,null,null,null,null,null,null,null,null,null,null,null,null,null,"円",null,null,null,null,null,null,null,null,null,null,null,null,null,null,"円",null,null,null,null,null,null,null,null,null,null,null,null,null,null,null,null,"円",null,null,null,null,null,null,null,null,null,null,null,null,null,null,null,null,null,null,null,null,"円"]
[]
[null,null,null,null,null,null,null,null,null,null,null,null,null,null,null,null,null,null,null,null,null,null,null,null,null,null,null,null,null,null,null,null,null,null,null,null,null,null,null,null,null,null,null,null,null,null,null,null,null,null,null,null,null,null,null,null,null,null,null,null,null,null,null,null,null,null,null,null,null,null,null,null,null,null,null,null,null,null,null,null,null,null,null,null,null,null,null," 8.その他"]
[null,null,{"$f":"IF((算定基礎届・正!C79)=\"\",\"\",算定基礎届・正!C79)","v":5},null,null,null,null,{"$f":"IF((算定基礎届・正!H79)=\"\",\"\",算定基礎届・正!H79)","v":""},null,null,null,null,null,null,null,null,null,{"$f":"IF((算定基礎届・正!R79)=\"\",\"\",算定基礎届・正!R79)","v":""},null,null,null,null,null,null,null,null,null,null,null,null,null,null,{"$f":"IF((算定基礎届・正!AG79)=\"\",\"\",算定基礎届・正!AG79)","v":""},null,null,null,null,null,null,null,null,null,null,null,null,null,null,{"$f":"IF((算定基礎届・正!AV79)=0,\"\",算定基礎届・正!AV79)","v":""},null,null,null,null,null,null,null,null,null,null,null,null,null,null,null,null,"⑮平均額"]
[]
[null,null,null,null,null,null,null,null,null,null,null,null,null,null,null,null,null,null,null,null,null,null,null,null,null,null,null,null,null,null,null,null,null,null,null,null,null,null,null,null,null,null,null,null,null,null,null,null,null,null,null,null,null,null,null,null,null,null,null,null,null,null,null,null,{"$f":"IF((算定基礎届・正!BM81)=0,\"\",算定基礎届・正!BM81)","v":""}]
[null,null,null,null,null,"月",null,null,null,null,null,null,null,null,null,"日",null,null,null,null,null,null,null,null,null,null,null,null,null,null,"円",null,null,null,null,null,null,null,null,null,null,null,null,null,null,"円",null,null,null,null,null,null,null,null,null,null,null,null,null,null,null,null,"円",null,null,null,null,null,null,null,null,null,null,null,null,null,null,null,null,null,null,null,null,"円",null,null,"(",null,{"$f":"IF((算定基礎届・正!CK82)=\"\",\"\",算定基礎届・正!CK82)","v":""},null,null,null,null,null,null,null,null,null,null,null,null,null,null,null,null,null,null,")"]
[]
[]
[null,null,{"$f":"IF((算定基礎届・正!C85)=\"\",\"\",算定基礎届・正!C85)","v":6},null,null,null,null,{"$f":"IF((算定基礎届・正!H85)=\"\",\"\",算定基礎届・正!H85)","v":""},null,null,null,null,null,null,null,null,null,{"$f":"IF((算定基礎届・正!R85)=\"\",\"\",算定基礎届・正!R85)","v":""},null,null,null,null,null,null,null,null,null,null,null,null,null,null,{"$f":"IF((算定基礎届・正!AG85)=\"\",\"\",算定基礎届・正!AG85)","v":""},null,null,null,null,null,null,null,null,null,null,null,null,null,null,{"$f":"IF((算定基礎届・正!AV85)=0,\"\",算定基礎届・正!AV85)","v":""},null,null,null,null,null,null,null,null,null,null,null,null,null,null,null,null,"⑯修正平均額",null,null,null,null,null,null,null,null,null,null,null,null,null,null,null,null,null,null,null,null,null,null,{"$f":"IF((算定基礎届・正!CJ85)=\"\",\"\",算定基礎届・正!CJ85)","v":""}]
[]
[null,null,null,null,null,null,null,null,null,null,null,null,null,null,null,null,null,null,null,null,null,null,null,null,null,null,null,null,null,null,null,null,null,null,null,null,null,null,null,null,null,null,null,null,null,null,null,null,null,null,null,null,null,null,null,null,null,null,null,null,null,null,null,null,{"$f":"IF((算定基礎届・正!BM87)=\"\",\"\",算定基礎届・正!BM87)","v":""}]
[null,null,null,null,null,"月",null,null,null,null,null,null,null,null,null,"日",null,null,null,null,null,null,null,null,null,null,null,null,null,null,"円",null,null,null,null,null,null,null,null,null,null,null,null,null,null,"円",null,null,null,null,null,null,null,null,null,null,null,null,null,null,null,null,"円",null,null,null,null,null,null,null,null,null,null,null,null,null,null,null,null,null,null,null,null,"円",null,null,null,null,null,null,null,null,null,null,null,null,null,null,null,null,null,null,null,null,null,null,"千円"]
[]
[]
[]
[null,null,{"$f":"IF((算定基礎届・正!C92)=\"\",\"\",算定基礎届・正!C92)","v":""},null,null,null,null,null,null,null,null,null,null,null,null,null,null,{"$f":"IF((算定基礎届・正!R92)=\"\",\"\",算定基礎届・正!R92)","v":""},null,null,null,null,null,null,null,null,null,null,null,null,null,null,null,null,null,null,null,null,null,null,null,null,null,null,null,null,null,{"$f":"IF((算定基礎届・正!AV92)=\"\",\"\",算定基礎届・正!AV92)","v":""},null,null,null,null,null,null,null,null,null,null,null,null,null,null,null,null,null,null,null,null,null,null,null,null,{"$f":"IF((算定基礎届・正!BU92)=\"\",\"\",算定基礎届・正!BU92)","v":""},null,null,null,null,null,null,{"$f":"IF((算定基礎届・正!CB92)=\"\",\"\",算定基礎届・正!CB92)","v":9},null,null,null,null,null,null,null," 1. 二以上勤務",null,null,null,null,null,null,null,null,null,null,null," 2.月額変更予定"]
[]
[null,null,null,null,null,null,null,null,null,null,null,null,null,null,null,null,null,null,null,null,null,null,null,null,null,null,null,null,null,null,null,null,null,null,null,null,null,null,null,null,null,null,null,null,null,null,null,null,null,null,null,null,null,null,null,null,null,null,null,null,null,null,null,null,null,null,null,null,null,null,null,null,null,null,null,null,null,"年",null,null,null,null,null,"月"]
[]
[null,null,null,null,null,null,null,null,null,null,null,null,null,null,null,null,null,null,null,null,null,null,null,null,null,null,null,null,null,null,null,null,null,null,null,null,null,null,null,null,null,null,null,null,null,null,null,null,null,null,null,null,null,null,null,null,null,null,null,null,null,null,null,null,null,null,null,null,null,null,null,null,null,null,null,null,null,null,null,null,null,null,null,null,null,null,null," 3.途中入社",null,null,null,null,null,null,null,null,null,null,null,"4.病休・育休・休職等"]
[null,null,{"$f":"IF((算定基礎届・正!C97)=\"\",\"\",算定基礎届・正!C97)","v":""},null,null,null,null,null,null,null,null,null,null,null,null,null,null,null,null,null,null,null,null,null,null,null,null,null,null,null,null,null,null,{"$f":"IF((算定基礎届・正!AH97)=\"\",\"\",算定基礎届・正!AH97)","v":""},null,null,null,null,null,null,{"$f":"IF((算定基礎届・正!AO97)=\"\",\"\",算定基礎届・正!AO97)","v":""},null,null,null,null,null,null,"⑦昇(降)給",null,null,null,null,null,null,null,null,null,null,"1．昇給",null,null,null,null,null,"⑧遡及支払額",null,null,null,null,null,null,null,null,{"$f":"IF((算定基礎届・正!BV97)=\"\",\"\",算定基礎届・正!BV97)","v":""}]
[]
[null,null,null,null,null,null,null,null,null,null,null,null,null,null,null,null,null,null,null,null,null,null,null,null,null,null,null,null,null,null,null,null,null,null,null,null,null,null,null,null,null,null,null,null,null,null,null,{"$f":"IF((算定基礎届・正!AV99)=\"\",\"\",算定基礎届・正!AV99)","v":""},null,null,null,null,null,null,"月",null,null,null,null,null,null,null,null,null,{"$f":"IF((算定基礎届・正!BM99)=\"\",\"\",算定基礎届・正!BM99)","v":""}]
[null,null,null,null,null,null,null,null,null,null,null,null,null,null,null,null,null,null,null,null,null,null,null,null,null,null,null,null,null,"千円",null,null,null,null,null,null,null,null,"年",null,null,null,null,null,null,"月",null,null,null,null,null,null,null,null,null,null,null,null,"2．降給",null,null,null,null,null,null,null,null,null,null,null,null,"月",null,null,null,null,null,null,null,null,null,null,null,"円",null,null,null," 5. 短時間労働者（特定適用事業所等）"]
[]
[]
[null,null,"⑨支給月",null,null,null,null,"⑩日数",null,null,null,null,null,null,null,null,null,"⑪通貨",null,null,null,null,null,null,null,null,null,null,null,null,null,null,"⑫現物",null,null,null,null,null,null,null,null,null,null,null,null,null,null,"⑬合計(⑪＋⑫)",null,null,null,null,null,null,null,null,null,null,null,null,null,null,null,null,"⑭総計"]
[null,null,null,null,null,null,null,null,null,null,null,null,null,null,null,null,null,null,null,null,null,null,null,null,null,null,null,null,null,null,null,null,null,null,null,null,null,null,null,null,null,null,null,null,null,null,null,null,null,null,null,null,null,null,null,null,null,null,null,null,null,null,null,null,null,null,null,null,null,null,null,null,null,null,null,null,null,null,null,null,null,null,null,null,null,null,null," 6.パート",null,null,null,null,null,null,null,null,null,null,null,"7.年間平均"]
[null,null,{"$f":"IF((算定基礎届・正!C105)=\"\",\"\",算定基礎届・正!C105)","v":4},null,null,null,null,{"$f":"IF((算定基礎届・正!H105)=\"\",\"\",算定基礎届・正!H105)","v":""},null,null,null,null,null,null,null,null,null,{"$f":"IF((算定基礎届・正!R105)=\"\",\"\",算定基礎届・正!R105)","v":""},null,null,null,null,null,null,null,null,null,null,null,null,null,null,{"$f":"IF((算定基礎届・正!AG105)=\"\",\"\",算定基礎届・正!AG105)","v":""},null,null,null,null,null,null,null,null,null,null,null,null,null,null,{"$f":"IF((算定基礎届・正!AV105)=0,\"\",算定基礎届・正!AV105)","v":""},null,null,null,null,null,null,null,null,null,null,null,null,null,null,null,null,{"$f":"IF((算定基礎届・正!BM105)=0,\"\",算定基礎届・正!BM105)","v":""}]
[null,null,null,null,null,"月",null,null,null,null,null,null,null,null,null,"日",null,null,null,null,null,null,null,null,null,null,null,null,null,null,"円",null,null,null,null,null,null,null,null,null,null,null,null,null,null,"円",null,null,null,null,null,null,null,null,null,null,null,null,null,null,null,null,"円",null,null,null,null,null,null,null,null,null,null,null,null,null,null,null,null,null,null,null,null,"円"]
[]
[null,null,null,null,null,null,null,null,null,null,null,null,null,null,null,null,null,null,null,null,null,null,null,null,null,null,null,null,null,null,null,null,null,null,null,null,null,null,null,null,null,null,null,null,null,null,null,null,null,null,null,null,null,null,null,null,null,null,null,null,null,null,null,null,null,null,null,null,null,null,null,null,null,null,null,null,null,null,null,null,null,null,null,null,null,null,null," 8.その他"]
[null,null,{"$f":"IF((算定基礎届・正!C109)=\"\",\"\",算定基礎届・正!C109)","v":5},null,null,null,null,{"$f":"IF((算定基礎届・正!H109)=\"\",\"\",算定基礎届・正!H109)","v":""},null,null,null,null,null,null,null,null,null,{"$f":"IF((算定基礎届・正!R109)=\"\",\"\",算定基礎届・正!R109)","v":""},null,null,null,null,null,null,null,null,null,null,null,null,null,null,{"$f":"IF((算定基礎届・正!AG109)=\"\",\"\",算定基礎届・正!AG109)","v":""},null,null,null,null,null,null,null,null,null,null,null,null,null,null,{"$f":"IF((算定基礎届・正!AV109)=0,\"\",算定基礎届・正!AV109)","v":""},null,null,null,null,null,null,null,null,null,null,null,null,null,null,null,null,"⑮平均額"]
[]
[null,null,null,null,null,null,null,null,null,null,null,null,null,null,null,null,null,null,null,null,null,null,null,null,null,null,null,null,null,null,null,null,null,null,null,null,null,null,null,null,null,null,null,null,null,null,null,null,null,null,null,null,null,null,null,null,null,null,null,null,null,null,null,null,{"$f":"IF((算定基礎届・正!BM111)=0,\"\",算定基礎届・正!BM111)","v":""}]
[null,null,null,null,null,"月",null,null,null,null,null,null,null,null,null,"日",null,null,null,null,null,null,null,null,null,null,null,null,null,null,"円",null,null,null,null,null,null,null,null,null,null,null,null,null,null,"円",null,null,null,null,null,null,null,null,null,null,null,null,null,null,null,null,"円",null,null,null,null,null,null,null,null,null,null,null,null,null,null,null,null,null,null,null,null,"円",null,null,"(",null,{"$f":"IF((算定基礎届・正!CK112)=\"\",\"\",算定基礎届・正!CK112)","v":""},null,null,null,null,null,null,null,null,null,null,null,null,null,null,null,null,null,null,")"]
[]
[]
[null,null,{"$f":"IF((算定基礎届・正!C115)=\"\",\"\",算定基礎届・正!C115)","v":6},null,null,null,null,{"$f":"IF((算定基礎届・正!H115)=\"\",\"\",算定基礎届・正!H115)","v":""},null,null,null,null,null,null,null,null,null,{"$f":"IF((算定基礎届・正!R115)=\"\",\"\",算定基礎届・正!R115)","v":""},null,null,null,null,null,null,null,null,null,null,null,null,null,null,{"$f":"IF((算定基礎届・正!AG115)=\"\",\"\",算定基礎届・正!AG115)","v":""},null,null,null,null,null,null,null,null,null,null,null,null,null,null,{"$f":"IF((算定基礎届・正!AV115)=0,\"\",算定基礎届・正!AV115)","v":""},null,null,null,null,null,null,null,null,null,null,null,null,null,null,null,null,"⑯修正平均額",null,null,null,null,null,null,null,null,null,null,null,null,null,null,null,null,null,null,null,null,null,null,{"$f":"IF((算定基礎届・正!CJ115)=\"\",\"\",算定基礎届・正!CJ115)","v":""}]
[]
[null,null,null,null,null,null,null,null,null,null,null,null,null,null,null,null,null,null,null,null,null,null,null,null,null,null,null,null,null,null,null,null,null,null,null,null,null,null,null,null,null,null,null,null,null,null,null,null,null,null,null,null,null,null,null,null,null,null,null,null,null,null,null,null,{"$f":"IF((算定基礎届・正!BM117)=\"\",\"\",算定基礎届・正!BM117)","v":""}]
[null,null,null,null,null,"月",null,null,null,null,null,null,null,null,null,"日",null,null,null,null,null,null,null,null,null,null,null,null,null,null,"円",null,null,null,null,null,null,null,null,null,null,null,null,null,null,"円",null,null,null,null,null,null,null,null,null,null,null,null,null,null,null,null,"円",null,null,null,null,null,null,null,null,null,null,null,null,null,null,null,null,null,null,null,null,"円",null,null,null,null,null,null,null,null,null,null,null,null,null,null,null,null,null,null,null,null,null,null,"千円"]
[]
[]
[]
[null,null,{"$f":"IF((算定基礎届・正!C122)=\"\",\"\",算定基礎届・正!C122)","v":""},null,null,null,null,null,null,null,null,null,null,null,null,null,null,{"$f":"IF((算定基礎届・正!R122)=\"\",\"\",算定基礎届・正!R122)","v":""},null,null,null,null,null,null,null,null,null,null,null,null,null,null,null,null,null,null,null,null,null,null,null,null,null,null,null,null,null,{"$f":"IF((算定基礎届・正!AV122)=\"\",\"\",算定基礎届・正!AV122)","v":""},null,null,null,null,null,null,null,null,null,null,null,null,null,null,null,null,null,null,null,null,null,null,null,null,{"$f":"IF((算定基礎届・正!BU122)=\"\",\"\",算定基礎届・正!BU122)","v":""},null,null,null,null,null,null,{"$f":"IF((算定基礎届・正!CB122)=\"\",\"\",算定基礎届・正!CB122)","v":9},null,null,null,null,null,null,null," 1. 二以上勤務",null,null,null,null,null,null,null,null,null,null,null," 2.月額変更予定"]
[]
[null,null,null,null,null,null,null,null,null,null,null,null,null,null,null,null,null,null,null,null,null,null,null,null,null,null,null,null,null,null,null,null,null,null,null,null,null,null,null,null,null,null,null,null,null,null,null,null,null,null,null,null,null,null,null,null,null,null,null,null,null,null,null,null,null,null,null,null,null,null,null,null,null,null,null,null,null,"年",null,null,null,null,null,"月"]
[]
[null,null,null,null,null,null,null,null,null,null,null,null,null,null,null,null,null,null,null,null,null,null,null,null,null,null,null,null,null,null,null,null,null,null,null,null,null,null,null,null,null,null,null,null,null,null,null,null,null,null,null,null,null,null,null,null,null,null,null,null,null,null,null,null,null,null,null,null,null,null,null,null,null,null,null,null,null,null,null,null,null,null,null,null,null,null,null," 3.途中入社",null,null,null,null,null,null,null,null,null,null,null,"4.病休・育休・休職等"]
[null,null,{"$f":"IF((算定基礎届・正!C127)=\"\",\"\",算定基礎届・正!C127)","v":""},null,null,null,null,null,null,null,null,null,null,null,null,null,null,null,null,null,null,null,null,null,null,null,null,null,null,null,null,null,null,{"$f":"IF((算定基礎届・正!AH127)=\"\",\"\",算定基礎届・正!AH127)","v":""},null,null,null,null,null,null,{"$f":"IF((算定基礎届・正!AO127)=\"\",\"\",算定基礎届・正!AO127)","v":""},null,null,null,null,null,null,"⑦昇(降)給",null,null,null,null,null,null,null,null,null,null,"1．昇給",null,null,null,null,null,"⑧遡及支払額",null,null,null,null,null,null,null,null,{"$f":"IF((算定基礎届・正!BV127)=\"\",\"\",算定基礎届・正!BV127)","v":""}]
[]
[null,null,null,null,null,null,null,null,null,null,null,null,null,null,null,null,null,null,null,null,null,null,null,null,null,null,null,null,null,null,null,null,null,null,null,null,null,null,null,null,null,null,null,null,null,null,null,{"$f":"IF((算定基礎届・正!AV129)=\"\",\"\",算定基礎届・正!AV129)","v":""},null,null,null,null,null,null,"月",null,null,null,null,null,null,null,null,null,{"$f":"IF((算定基礎届・正!BM129)=\"\",\"\",算定基礎届・正!BM129)","v":""}]
[null,null,null,null,null,null,null,null,null,null,null,null,null,null,null,null,null,null,null,null,null,null,null,null,null,null,null,null,null,"千円",null,null,null,null,null,null,null,null,"年",null,null,null,null,null,null,"月",null,null,null,null,null,null,null,null,null,null,null,null,"2．降給",null,null,null,null,null,null,null,null,null,null,null,null,"月",null,null,null,null,null,null,null,null,null,null,null,"円",null,null,null," 5. 短時間労働者（特定適用事業所等）"]
[]
[]
[null,null,"⑨支給月",null,null,null,null,"⑩日数",null,null,null,null,null,null,null,null,null,"⑪通貨",null,null,null,null,null,null,null,null,null,null,null,null,null,null,"⑫現物",null,null,null,null,null,null,null,null,null,null,null,null,null,null,"⑬合計(⑪＋⑫)",null,null,null,null,null,null,null,null,null,null,null,null,null,null,null,null,"⑭総計"]
[null,null,null,null,null,null,null,null,null,null,null,null,null,null,null,null,null,null,null,null,null,null,null,null,null,null,null,null,null,null,null,null,null,null,null,null,null,null,null,null,null,null,null,null,null,null,null,null,null,null,null,null,null,null,null,null,null,null,null,null,null,null,null,null,null,null,null,null,null,null,null,null,null,null,null,null,null,null,null,null,null,null,null,null,null,null,null," 6.パート",null,null,null,null,null,null,null,null,null,null,null,"7.年間平均"]
[null,null,{"$f":"IF((算定基礎届・正!C135)=\"\",\"\",算定基礎届・正!C135)","v":4},null,null,null,null,{"$f":"IF((算定基礎届・正!H135)=\"\",\"\",算定基礎届・正!H135)","v":""},null,null,null,null,null,null,null,null,null,{"$f":"IF((算定基礎届・正!R135)=\"\",\"\",算定基礎届・正!R135)","v":""},null,null,null,null,null,null,null,null,null,null,null,null,null,null,{"$f":"IF((算定基礎届・正!AG135)=\"\",\"\",算定基礎届・正!AG135)","v":""},null,null,null,null,null,null,null,null,null,null,null,null,null,null,{"$f":"IF((算定基礎届・正!AV135)=0,\"\",算定基礎届・正!AV135)","v":""},null,null,null,null,null,null,null,null,null,null,null,null,null,null,null,null,{"$f":"IF((算定基礎届・正!BM135)=0,\"\",算定基礎届・正!BM135)","v":""}]
[null,null,null,null,null,"月",null,null,null,null,null,null,null,null,null,"日",null,null,null,null,null,null,null,null,null,null,null,null,null,null,"円",null,null,null,null,null,null,null,null,null,null,null,null,null,null,"円",null,null,null,null,null,null,null,null,null,null,null,null,null,null,null,null,"円",null,null,null,null,null,null,null,null,null,null,null,null,null,null,null,null,null,null,null,null,"円"]
[]
[null,null,null,null,null,null,null,null,null,null,null,null,null,null,null,null,null,null,null,null,null,null,null,null,null,null,null,null,null,null,null,null,null,null,null,null,null,null,null,null,null,null,null,null,null,null,null,null,null,null,null,null,null,null,null,null,null,null,null,null,null,null,null,null,null,null,null,null,null,null,null,null,null,null,null,null,null,null,null,null,null,null,null,null,null,null,null," 8.その他"]
[null,null,{"$f":"IF((算定基礎届・正!C139)=\"\",\"\",算定基礎届・正!C139)","v":5},null,null,null,null,{"$f":"IF((算定基礎届・正!H139)=\"\",\"\",算定基礎届・正!H139)","v":""},null,null,null,null,null,null,null,null,null,{"$f":"IF((算定基礎届・正!R139)=\"\",\"\",算定基礎届・正!R139)","v":""},null,null,null,null,null,null,null,null,null,null,null,null,null,null,{"$f":"IF((算定基礎届・正!AG139)=\"\",\"\",算定基礎届・正!AG139)","v":""},null,null,null,null,null,null,null,null,null,null,null,null,null,null,{"$f":"IF((算定基礎届・正!AV139)=0,\"\",算定基礎届・正!AV139)","v":""},null,null,null,null,null,null,null,null,null,null,null,null,null,null,null,null,"⑮平均額"]
[]
[null,null,null,null,null,null,null,null,null,null,null,null,null,null,null,null,null,null,null,null,null,null,null,null,null,null,null,null,null,null,null,null,null,null,null,null,null,null,null,null,null,null,null,null,null,null,null,null,null,null,null,null,null,null,null,null,null,null,null,null,null,null,null,null,{"$f":"IF((算定基礎届・正!BM141)=0,\"\",算定基礎届・正!BM141)","v":""}]
[null,null,null,null,null,"月",null,null,null,null,null,null,null,null,null,"日",null,null,null,null,null,null,null,null,null,null,null,null,null,null,"円",null,null,null,null,null,null,null,null,null,null,null,null,null,null,"円",null,null,null,null,null,null,null,null,null,null,null,null,null,null,null,null,"円",null,null,null,null,null,null,null,null,null,null,null,null,null,null,null,null,null,null,null,null,"円",null,null,"(",null,{"$f":"IF((算定基礎届・正!CK142)=\"\",\"\",算定基礎届・正!CK142)","v":""},null,null,null,null,null,null,null,null,null,null,null,null,null,null,null,null,null,null,")"]
[]
[]
[null,null,{"$f":"IF((算定基礎届・正!C145)=\"\",\"\",算定基礎届・正!C145)","v":6},null,null,null,null,{"$f":"IF((算定基礎届・正!H145)=\"\",\"\",算定基礎届・正!H145)","v":""},null,null,null,null,null,null,null,null,null,{"$f":"IF((算定基礎届・正!R145)=\"\",\"\",算定基礎届・正!R145)","v":""},null,null,null,null,null,null,null,null,null,null,null,null,null,null,{"$f":"IF((算定基礎届・正!AG145)=\"\",\"\",算定基礎届・正!AG145)","v":""},null,null,null,null,null,null,null,null,null,null,null,null,null,null,{"$f":"IF((算定基礎届・正!AV145)=0,\"\",算定基礎届・正!AV145)","v":""},null,null,null,null,null,null,null,null,null,null,null,null,null,null,null,null,"⑯修正平均額",null,null,null,null,null,null,null,null,null,null,null,null,null,null,null,null,null,null,null,null,null,null,{"$f":"IF((算定基礎届・正!CJ145)=\"\",\"\",算定基礎届・正!CJ145)","v":""}]
[]
[null,null,null,null,null,null,null,null,null,null,null,null,null,null,null,null,null,null,null,null,null,null,null,null,null,null,null,null,null,null,null,null,null,null,null,null,null,null,null,null,null,null,null,null,null,null,null,null,null,null,null,null,null,null,null,null,null,null,null,null,null,null,null,null,{"$f":"IF((算定基礎届・正!BM147)=\"\",\"\",算定基礎届・正!BM147)","v":""}]
[null,null,null,null,null,"月",null,null,null,null,null,null,null,null,null,"日",null,null,null,null,null,null,null,null,null,null,null,null,null,null,"円",null,null,null,null,null,null,null,null,null,null,null,null,null,null,"円",null,null,null,null,null,null,null,null,null,null,null,null,null,null,null,null,"円",null,null,null,null,null,null,null,null,null,null,null,null,null,null,null,null,null,null,null,null,"円",null,null,null,null,null,null,null,null,null,null,null,null,null,null,null,null,null,null,null,null,null,null,"千円"]
[]
[]
[]
[null,null,{"$f":"IF((算定基礎届・正!C152)=\"\",\"\",算定基礎届・正!C152)","v":""},null,null,null,null,null,null,null,null,null,null,null,null,null,null,{"$f":"IF((算定基礎届・正!R152)=\"\",\"\",算定基礎届・正!R152)","v":""},null,null,null,null,null,null,null,null,null,null,null,null,null,null,null,null,null,null,null,null,null,null,null,null,null,null,null,null,null,{"$f":"IF((算定基礎届・正!AV152)=\"\",\"\",算定基礎届・正!AV152)","v":""},null,null,null,null,null,null,null,null,null,null,null,null,null,null,null,null,null,null,null,null,null,null,null,null,{"$f":"IF((算定基礎届・正!BU152)=\"\",\"\",算定基礎届・正!BU152)","v":""},null,null,null,null,null,null,{"$f":"IF((算定基礎届・正!CB152)=\"\",\"\",算定基礎届・正!CB152)","v":9},null,null,null,null,null,null,null," 1. 二以上勤務",null,null,null,null,null,null,null,null,null,null,null," 2.月額変更予定"]
[]
[null,null,null,null,null,null,null,null,null,null,null,null,null,null,null,null,null,null,null,null,null,null,null,null,null,null,null,null,null,null,null,null,null,null,null,null,null,null,null,null,null,null,null,null,null,null,null,null,null,null,null,null,null,null,null,null,null,null,null,null,null,null,null,null,null,null,null,null,null,null,null,null,null,null,null,null,null,"年",null,null,null,null,null,"月"]
[]
[null,null,null,null,null,null,null,null,null,null,null,null,null,null,null,null,null,null,null,null,null,null,null,null,null,null,null,null,null,null,null,null,null,null,null,null,null,null,null,null,null,null,null,null,null,null,null,null,null,null,null,null,null,null,null,null,null,null,null,null,null,null,null,null,null,null,null,null,null,null,null,null,null,null,null,null,null,null,null,null,null,null,null,null,null,null,null," 3.途中入社",null,null,null,null,null,null,null,null,null,null,null,"4.病休・育休・休職等"]
[null,null,{"$f":"IF((算定基礎届・正!C157)=\"\",\"\",算定基礎届・正!C157)","v":""},null,null,null,null,null,null,null,null,null,null,null,null,null,null,null,null,null,null,null,null,null,null,null,null,null,null,null,null,null,null,{"$f":"IF((算定基礎届・正!AH157)=\"\",\"\",算定基礎届・正!AH157)","v":""},null,null,null,null,null,null,{"$f":"IF((算定基礎届・正!AO157)=\"\",\"\",算定基礎届・正!AO157)","v":""},null,null,null,null,null,null,"⑦昇(降)給",null,null,null,null,null,null,null,null,null,null,"1．昇給",null,null,null,null,null,"⑧遡及支払額",null,null,null,null,null,null,null,null,{"$f":"IF((算定基礎届・正!BV157)=\"\",\"\",算定基礎届・正!BV157)","v":""}]
[]
[null,null,null,null,null,null,null,null,null,null,null,null,null,null,null,null,null,null,null,null,null,null,null,null,null,null,null,null,null,null,null,null,null,null,null,null,null,null,null,null,null,null,null,null,null,null,null,{"$f":"IF((算定基礎届・正!AV159)=\"\",\"\",算定基礎届・正!AV159)","v":""},null,null,null,null,null,null,"月",null,null,null,null,null,null,null,null,null,{"$f":"IF((算定基礎届・正!BM159)=\"\",\"\",算定基礎届・正!BM159)","v":""}]
[null,null,null,null,null,null,null,null,null,null,null,null,null,null,null,null,null,null,null,null,null,null,null,null,null,null,null,null,null,"千円",null,null,null,null,null,null,null,null,"年",null,null,null,null,null,null,"月",null,null,null,null,null,null,null,null,null,null,null,null,"2．降給",null,null,null,null,null,null,null,null,null,null,null,null,"月",null,null,null,null,null,null,null,null,null,null,null,"円",null,null,null," 5. 短時間労働者（特定適用事業所等）"]
[]
[]
[null,null,"⑨支給月",null,null,null,null,"⑩日数",null,null,null,null,null,null,null,null,null,"⑪通貨",null,null,null,null,null,null,null,null,null,null,null,null,null,null,"⑫現物",null,null,null,null,null,null,null,null,null,null,null,null,null,null,"⑬合計(⑪＋⑫)",null,null,null,null,null,null,null,null,null,null,null,null,null,null,null,null,"⑭総計"]
[null,null,null,null,null,null,null,null,null,null,null,null,null,null,null,null,null,null,null,null,null,null,null,null,null,null,null,null,null,null,null,null,null,null,null,null,null,null,null,null,null,null,null,null,null,null,null,null,null,null,null,null,null,null,null,null,null,null,null,null,null,null,null,null,null,null,null,null,null,null,null,null,null,null,null,null,null,null,null,null,null,null,null,null,null,null,null," 6.パート",null,null,null,null,null,null,null,null,null,null,null,"7.年間平均"]
[null,null,{"$f":"IF((算定基礎届・正!C165)=\"\",\"\",算定基礎届・正!C165)","v":4},null,null,null,null,{"$f":"IF((算定基礎届・正!H165)=\"\",\"\",算定基礎届・正!H165)","v":""},null,null,null,null,null,null,null,null,null,{"$f":"IF((算定基礎届・正!R165)=\"\",\"\",算定基礎届・正!R165)","v":""},null,null,null,null,null,null,null,null,null,null,null,null,null,null,{"$f":"IF((算定基礎届・正!AG165)=\"\",\"\",算定基礎届・正!AG165)","v":""},null,null,null,null,null,null,null,null,null,null,null,null,null,null,{"$f":"IF((算定基礎届・正!AV165)=0,\"\",算定基礎届・正!AV165)","v":""},null,null,null,null,null,null,null,null,null,null,null,null,null,null,null,null,{"$f":"IF((算定基礎届・正!BM165)=0,\"\",算定基礎届・正!BM165)","v":""}]
[null,null,null,null,null,"月",null,null,null,null,null,null,null,null,null,"日",null,null,null,null,null,null,null,null,null,null,null,null,null,null,"円",null,null,null,null,null,null,null,null,null,null,null,null,null,null,"円",null,null,null,null,null,null,null,null,null,null,null,null,null,null,null,null,"円",null,null,null,null,null,null,null,null,null,null,null,null,null,null,null,null,null,null,null,null,"円"]
[]
[null,null,null,null,null,null,null,null,null,null,null,null,null,null,null,null,null,null,null,null,null,null,null,null,null,null,null,null,null,null,null,null,null,null,null,null,null,null,null,null,null,null,null,null,null,null,null,null,null,null,null,null,null,null,null,null,null,null,null,null,null,null,null,null,null,null,null,null,null,null,null,null,null,null,null,null,null,null,null,null,null,null,null,null,null,null,null," 8.その他"]
[null,null,{"$f":"IF((算定基礎届・正!C169)=\"\",\"\",算定基礎届・正!C169)","v":5},null,null,null,null,{"$f":"IF((算定基礎届・正!H169)=\"\",\"\",算定基礎届・正!H169)","v":""},null,null,null,null,null,null,null,null,null,{"$f":"IF((算定基礎届・正!R169)=\"\",\"\",算定基礎届・正!R169)","v":""},null,null,null,null,null,null,null,null,null,null,null,null,null,null,{"$f":"IF((算定基礎届・正!AG169)=\"\",\"\",算定基礎届・正!AG169)","v":""},null,null,null,null,null,null,null,null,null,null,null,null,null,null,{"$f":"IF((算定基礎届・正!AV169)=0,\"\",算定基礎届・正!AV169)","v":""},null,null,null,null,null,null,null,null,null,null,null,null,null,null,null,null,"⑮平均額"]
[]
[null,null,null,null,null,null,null,null,null,null,null,null,null,null,null,null,null,null,null,null,null,null,null,null,null,null,null,null,null,null,null,null,null,null,null,null,null,null,null,null,null,null,null,null,null,null,null,null,null,null,null,null,null,null,null,null,null,null,null,null,null,null,null,null,{"$f":"IF((算定基礎届・正!BM171)=0,\"\",算定基礎届・正!BM171)","v":""}]
[null,null,null,null,null,"月",null,null,null,null,null,null,null,null,null,"日",null,null,null,null,null,null,null,null,null,null,null,null,null,null,"円",null,null,null,null,null,null,null,null,null,null,null,null,null,null,"円",null,null,null,null,null,null,null,null,null,null,null,null,null,null,null,null,"円",null,null,null,null,null,null,null,null,null,null,null,null,null,null,null,null,null,null,null,null,"円",null,null,"(",null,{"$f":"IF((算定基礎届・正!CK172)=\"\",\"\",算定基礎届・正!CK172)","v":""},null,null,null,null,null,null,null,null,null,null,null,null,null,null,null,null,null,null,")"]
[]
[]
[null,null,{"$f":"IF((算定基礎届・正!C175)=\"\",\"\",算定基礎届・正!C175)","v":6},null,null,null,null,{"$f":"IF((算定基礎届・正!H175)=\"\",\"\",算定基礎届・正!H175)","v":""},null,null,null,null,null,null,null,null,null,{"$f":"IF((算定基礎届・正!R175)=\"\",\"\",算定基礎届・正!R175)","v":""},null,null,null,null,null,null,null,null,null,null,null,null,null,null,{"$f":"IF((算定基礎届・正!AG175)=\"\",\"\",算定基礎届・正!AG175)","v":""},null,null,null,null,null,null,null,null,null,null,null,null,null,null,{"$f":"IF((算定基礎届・正!AV175)=0,\"\",算定基礎届・正!AV175)","v":""},null,null,null,null,null,null,null,null,null,null,null,null,null,null,null,null,"⑯修正平均額",null,null,null,null,null,null,null,null,null,null,null,null,null,null,null,null,null,null,null,null,null,null,{"$f":"IF((算定基礎届・正!CJ175)=\"\",\"\",算定基礎届・正!CJ175)","v":""}]
[]
[null,null,null,null,null,null,null,null,null,null,null,null,null,null,null,null,null,null,null,null,null,null,null,null,null,null,null,null,null,null,null,null,null,null,null,null,null,null,null,null,null,null,null,null,null,null,null,null,null,null,null,null,null,null,null,null,null,null,null,null,null,null,null,null,{"$f":"IF((算定基礎届・正!BM177)=\"\",\"\",算定基礎届・正!BM177)","v":""}]
[null,null,null,null,null,"月",null,null,null,null,null,null,null,null,null,"日",null,null,null,null,null,null,null,null,null,null,null,null,null,null,"円",null,null,null,null,null,null,null,null,null,null,null,null,null,null,"円",null,null,null,null,null,null,null,null,null,null,null,null,null,null,null,null,"円",null,null,null,null,null,null,null,null,null,null,null,null,null,null,null,null,null,null,null,null,"円",null,null,null,null,null,null,null,null,null,null,null,null,null,null,null,null,null,null,null,null,null,null,"千円"]
[]
[]
[]
[null,null,{"$f":"IF((算定基礎届・正!C182)=\"\",\"\",算定基礎届・正!C182)","v":""},null,null,null,null,null,null,null,null,null,null,null,null,null,null,{"$f":"IF((算定基礎届・正!R182)=\"\",\"\",算定基礎届・正!R182)","v":""},null,null,null,null,null,null,null,null,null,null,null,null,null,null,null,null,null,null,null,null,null,null,null,null,null,null,null,null,null,{"$f":"IF((算定基礎届・正!AV182)=\"\",\"\",算定基礎届・正!AV182)","v":""},null,null,null,null,null,null,null,null,null,null,null,null,null,null,null,null,null,null,null,null,null,null,null,null,{"$f":"IF((算定基礎届・正!BU182)=\"\",\"\",算定基礎届・正!BU182)","v":""},null,null,null,null,null,null,{"$f":"IF((算定基礎届・正!CB182)=\"\",\"\",算定基礎届・正!CB182)","v":9},null,null,null,null,null,null,null," 1. 二以上勤務",null,null,null,null,null,null,null,null,null,null,null," 2.月額変更予定"]
[]
[null,null,null,null,null,null,null,null,null,null,null,null,null,null,null,null,null,null,null,null,null,null,null,null,null,null,null,null,null,null,null,null,null,null,null,null,null,null,null,null,null,null,null,null,null,null,null,null,null,null,null,null,null,null,null,null,null,null,null,null,null,null,null,null,null,null,null,null,null,null,null,null,null,null,null,null,null,"年",null,null,null,null,null,"月"]
[]
[null,null,null,null,null,null,null,null,null,null,null,null,null,null,null,null,null,null,null,null,null,null,null,null,null,null,null,null,null,null,null,null,null,null,null,null,null,null,null,null,null,null,null,null,null,null,null,null,null,null,null,null,null,null,null,null,null,null,null,null,null,null,null,null,null,null,null,null,null,null,null,null,null,null,null,null,null,null,null,null,null,null,null,null,null,null,null," 3.途中入社",null,null,null,null,null,null,null,null,null,null,null,"4.病休・育休・休職等"]
[null,null,{"$f":"IF((算定基礎届・正!C187)=\"\",\"\",算定基礎届・正!C187)","v":""},null,null,null,null,null,null,null,null,null,null,null,null,null,null,null,null,null,null,null,null,null,null,null,null,null,null,null,null,null,null,{"$f":"IF((算定基礎届・正!AH187)=\"\",\"\",算定基礎届・正!AH187)","v":""},null,null,null,null,null,null,{"$f":"IF((算定基礎届・正!AO187)=\"\",\"\",算定基礎届・正!AO187)","v":""},null,null,null,null,null,null,"⑦昇(降)給",null,null,null,null,null,null,null,null,null,null,"1．昇給",null,null,null,null,null,"⑧遡及支払額",null,null,null,null,null,null,null,null,{"$f":"IF((算定基礎届・正!BV187)=\"\",\"\",算定基礎届・正!BV187)","v":""}]
[]
[null,null,null,null,null,null,null,null,null,null,null,null,null,null,null,null,null,null,null,null,null,null,null,null,null,null,null,null,null,null,null,null,null,null,null,null,null,null,null,null,null,null,null,null,null,null,null,{"$f":"IF((算定基礎届・正!AV189)=\"\",\"\",算定基礎届・正!AV189)","v":""},null,null,null,null,null,null,"月",null,null,null,null,null,null,null,null,null,{"$f":"IF((算定基礎届・正!BM189)=\"\",\"\",算定基礎届・正!BM189)","v":""}]
[null,null,null,null,null,null,null,null,null,null,null,null,null,null,null,null,null,null,null,null,null,null,null,null,null,null,null,null,null,"千円",null,null,null,null,null,null,null,null,"年",null,null,null,null,null,null,"月",null,null,null,null,null,null,null,null,null,null,null,null,"2．降給",null,null,null,null,null,null,null,null,null,null,null,null,"月",null,null,null,null,null,null,null,null,null,null,null,"円",null,null,null," 5. 短時間労働者（特定適用事業所等）"]
[]
[]
[null,null,"⑨支給月",null,null,null,null,"⑩日数",null,null,null,null,null,null,null,null,null,"⑪通貨",null,null,null,null,null,null,null,null,null,null,null,null,null,null,"⑫現物",null,null,null,null,null,null,null,null,null,null,null,null,null,null,"⑬合計(⑪＋⑫)",null,null,null,null,null,null,null,null,null,null,null,null,null,null,null,null,"⑭総計"]
[null,null,null,null,null,null,null,null,null,null,null,null,null,null,null,null,null,null,null,null,null,null,null,null,null,null,null,null,null,null,null,null,null,null,null,null,null,null,null,null,null,null,null,null,null,null,null,null,null,null,null,null,null,null,null,null,null,null,null,null,null,null,null,null,null,null,null,null,null,null,null,null,null,null,null,null,null,null,null,null,null,null,null,null,null,null,null," 6.パート",null,null,null,null,null,null,null,null,null,null,null,"7.年間平均"]
[null,null,{"$f":"IF((算定基礎届・正!C195)=\"\",\"\",算定基礎届・正!C195)","v":4},null,null,null,null,{"$f":"IF((算定基礎届・正!H195)=\"\",\"\",算定基礎届・正!H195)","v":""},null,null,null,null,null,null,null,null,null,{"$f":"IF((算定基礎届・正!R195)=\"\",\"\",算定基礎届・正!R195)","v":""},null,null,null,null,null,null,null,null,null,null,null,null,null,null,{"$f":"IF((算定基礎届・正!AG195)=\"\",\"\",算定基礎届・正!AG195)","v":""},null,null,null,null,null,null,null,null,null,null,null,null,null,null,{"$f":"IF((算定基礎届・正!AV195)=0,\"\",算定基礎届・正!AV195)","v":""},null,null,null,null,null,null,null,null,null,null,null,null,null,null,null,null,{"$f":"IF((算定基礎届・正!BM195)=0,\"\",算定基礎届・正!BM195)","v":""}]
[null,null,null,null,null,"月",null,null,null,null,null,null,null,null,null,"日",null,null,null,null,null,null,null,null,null,null,null,null,null,null,"円",null,null,null,null,null,null,null,null,null,null,null,null,null,null,"円",null,null,null,null,null,null,null,null,null,null,null,null,null,null,null,null,"円",null,null,null,null,null,null,null,null,null,null,null,null,null,null,null,null,null,null,null,null,"円"]
[]
[null,null,null,null,null,null,null,null,null,null,null,null,null,null,null,null,null,null,null,null,null,null,null,null,null,null,null,null,null,null,null,null,null,null,null,null,null,null,null,null,null,null,null,null,null,null,null,null,null,null,null,null,null,null,null,null,null,null,null,null,null,null,null,null,null,null,null,null,null,null,null,null,null,null,null,null,null,null,null,null,null,null,null,null,null,null,null," 8.その他"]
[null,null,{"$f":"IF((算定基礎届・正!C199)=\"\",\"\",算定基礎届・正!C199)","v":5},null,null,null,null,{"$f":"IF((算定基礎届・正!H199)=\"\",\"\",算定基礎届・正!H199)","v":""},null,null,null,null,null,null,null,null,null,{"$f":"IF((算定基礎届・正!R199)=\"\",\"\",算定基礎届・正!R199)","v":""},null,null,null,null,null,null,null,null,null,null,null,null,null,null,{"$f":"IF((算定基礎届・正!AG199)=\"\",\"\",算定基礎届・正!AG199)","v":""},null,null,null,null,null,null,null,null,null,null,null,null,null,null,{"$f":"IF((算定基礎届・正!AV199)=0,\"\",算定基礎届・正!AV199)","v":""},null,null,null,null,null,null,null,null,null,null,null,null,null,null,null,null,"⑮平均額"]
[]
[null,null,null,null,null,null,null,null,null,null,null,null,null,null,null,null,null,null,null,null,null,null,null,null,null,null,null,null,null,null,null,null,null,null,null,null,null,null,null,null,null,null,null,null,null,null,null,null,null,null,null,null,null,null,null,null,null,null,null,null,null,null,null,null,{"$f":"IF((算定基礎届・正!BM201)=0,\"\",算定基礎届・正!BM201)","v":""}]
[null,null,null,null,null,"月",null,null,null,null,null,null,null,null,null,"日",null,null,null,null,null,null,null,null,null,null,null,null,null,null,"円",null,null,null,null,null,null,null,null,null,null,null,null,null,null,"円",null,null,null,null,null,null,null,null,null,null,null,null,null,null,null,null,"円",null,null,null,null,null,null,null,null,null,null,null,null,null,null,null,null,null,null,null,null,"円",null,null,"(",null,{"$f":"IF((算定基礎届・正!CK202)=\"\",\"\",算定基礎届・正!CK202)","v":""},null,null,null,null,null,null,null,null,null,null,null,null,null,null,null,null,null,null,")"]
[]
[]
[null,null,{"$f":"IF((算定基礎届・正!C205)=\"\",\"\",算定基礎届・正!C205)","v":6},null,null,null,null,{"$f":"IF((算定基礎届・正!H205)=\"\",\"\",算定基礎届・正!H205)","v":""},null,null,null,null,null,null,null,null,null,{"$f":"IF((算定基礎届・正!R205)=\"\",\"\",算定基礎届・正!R205)","v":""},null,null,null,null,null,null,null,null,null,null,null,null,null,null,{"$f":"IF((算定基礎届・正!AG205)=\"\",\"\",算定基礎届・正!AG205)","v":""},null,null,null,null,null,null,null,null,null,null,null,null,null,null,{"$f":"IF((算定基礎届・正!AV205)=0,\"\",算定基礎届・正!AV205)","v":""},null,null,null,null,null,null,null,null,null,null,null,null,null,null,null,null,"⑯修正平均額",null,null,null,null,null,null,null,null,null,null,null,null,null,null,null,null,null,null,null,null,null,null,{"$f":"IF((算定基礎届・正!CJ205)=\"\",\"\",算定基礎届・正!CJ205)","v":""}]
[]
[null,null,null,null,null,null,null,null,null,null,null,null,null,null,null,null,null,null,null,null,null,null,null,null,null,null,null,null,null,null,null,null,null,null,null,null,null,null,null,null,null,null,null,null,null,null,null,null,null,null,null,null,null,null,null,null,null,null,null,null,null,null,null,null,{"$f":"IF((算定基礎届・正!BM207)=\"\",\"\",算定基礎届・正!BM207)","v":""}]
[null,null,null,null,null,"月",null,null,null,null,null,null,null,null,null,"日",null,null,null,null,null,null,null,null,null,null,null,null,null,null,"円",null,null,null,null,null,null,null,null,null,null,null,null,null,null,"円",null,null,null,null,null,null,null,null,null,null,null,null,null,null,null,null,"円",null,null,null,null,null,null,null,null,null,null,null,null,null,null,null,null,null,null,null,null,"円",null,null,null,null,null,null,null,null,null,null,null,null,null,null,null,null,null,null,null,null,null,null,"千円"]
[]
[]
[]
[]
[null,"上記の通り標準報酬が改定されたので通知します。",null,null,null,null,null,null,null,null,null,null,null,null,null,null,null,null,null,null,null,null,null,null,null,null,null,null,null,null,null,null,null,null,null,null,null,null,null,null,null,null,null,null,null,null,null,null,null,null,null,null,null,null,null,null,null,null,null,null,null,null,null,null,null,null,null,null,null,null,null,"東京金属事業健康保険組合理事長"]
[]
[null,"　令和　　　　　年　　　月　　　日"]
[]
[null,null,null,"この書類の保険料",null,null,null,null,null,null,null,null,null,null,null,null,null,null,null,null,null,null,null,null,null,null,"(付記)"]
[null,null,null,"は　　　　月分で",null,null,null,null,null,null,null,null,null,null,null,null,null,null,null,null,null,null,null,null,null,null,"１.この決定に不服のあるときは裏面をご覧ください。"]
[null,null,null,"計算いたします",null,null,null,null,null,null,null,null,null,null,null,null,null,null,null,null,null,null,null,null,null,null,"２.この通知書を受け取ったら、すみやかに、決定された標準報酬などを、それぞれの被保険者に通知しなければなりません。"]
[]
[]
[]
[null,null,"　この通知書でわからないことがあるときは当組合へお尋ねください。この処分に不服が"]
[null,null,"あるときは、処分があったことを知った日の翌日から起算して３か月以内に文書又は口頭"]
[null,null,"で社会保険審査官（地方厚生（支）局内）に対して審査請求をすることができます。また、"]
[null,null,"審査請求の決定に不服があるときは、再審査請求又は処分の取消しの訴えを提起すること"]
[null,null,"ができます。"]
[null,null,"　再審査請求は、審査官の決定書の謄本が送付された日の翌日から起算して２か月以内に"]
[null,null,"文書又は口頭で社会保険審査会（厚生労働省内）に対して行うことができ、処分の取消し"]
[null,null,"の訴えは、審査請求の決定があったことを知った日から６か月以内（再審査請求があった"]
[null,null,"ときは、その裁決があったことを知った日から６か月以内）に、健康保険組合を被告とし"]
[null,null,"て提起することができます。（ただし、原則として、決定又は裁決の日から１年を経過し"]
[null,null,"たときは、提起することができなきなります。）"]
[null,null,"　なお、審査請求があった日から２か月を経過しても決定がないときや、処分の執行等に"]
[null,null,"よる著しい損害を避けるため緊急の必要があるとき、その他正当な理由があるときは、審"]
[null,null,"査請求の決定を経なくても提起することができます。"]